{"text_format":"1","workbook":"xlsx","n_sheets":4,"sheets":["Values","WorkSheet","Answers","Working"],"not_rendered":{"charts":0,"images":8,"macros":1,"external_links":0,"defined_names":0,"comments":0,"pivot_tables":0},"unopened":[],"bounds":{"document_bytes":16777216,"sheet_cells":100000,"rows_first":2000,"rows_last":500,"rows_between":2000,"halvings":0,"cell_chars":16384,"cell_head_chars":4096},"cells_cut":0,"cells_raw":0,"read":"whole","date_system":"1900"}

{"sheet":"Values","index":0,"n_rows":24,"n_cols":11,"rows_kept":24,"cut":false,"hidden":false,"merged":[[21,10,25,11],[2,2,2,6],[4,2,4,6],[14,2,14,10],[13,5,13,7],[23,2,24,8],[15,5,15,8],[15,3,15,4],[16,3,16,4],[16,5,16,8],[17,3,17,4],[21,2,21,6]]}
[]
[null,null,null,null,{"$f":"Working!AB1","v":"PROBLEM SOLVING"}]
[null,null,"INSTRUCTIONS"]
[]
[null,"Step 1","Select the type of problem, as listed below."]
[]
[]
[]
[]
[]
[]
[]
[]
[null,"Step 2","Numerator type"]
[null,null,"Determine the numerator and denominator the sheet uses for the fractions."]
[null,null,"Click 1:","for numerator 1",null,"& denominator 2, 3, 4, 5 and 10;"]
[null,null,"Click 2:","for numerator 1",null,"& denominator 2, 3, 4, 5, 8 and 10;"]
[null,null,"Click 3:"," for any."]
[]
[]
[]
[null,"Step 3","Click on WorkSheet tab below.",null,null,null,null,null,null,null,"PRESS F9 for NEW WorkSheet"]
[]
[null,"Note","If you hold down shift then click on the WorkSheet tab and the Answers tab, you will be able to print both the WorkSheet and the solutions."]

{"sheet":"WorkSheet","index":1,"n_rows":43,"n_cols":3,"rows_kept":43,"cut":false,"hidden":false,"merged":[[0,0,0,2]]}
[{"$f":"OFFSET(Working!D1,0,6*Working!C3)","v":"ADDITION PROBLEMS"}]
[]
["Evaluate the following",null,{"$f":"CONCATENATE(\"WorkSheet \",Working!I1,Working!H1)","v":"WorkSheet APL-593"}]
[]
[{"$f":"Working!B4","v":"1)"},{"$f":"CONCATENATE(OFFSET(Working!D4,0,6*Working!C4+1),OFFSET(Working!D4,0,6*Working!C4+2),OFFSET(Working!D4,0,6*Working!C4+3))","v":"Jack went shopping for his music CD's. His CD's cost $20, $27, $21, $21 and $23. Find the total price Jack paid."}]
[]
[{"$f":"Working!B5","v":"2)"},{"$f":"CONCATENATE(OFFSET(Working!D5,0,6*Working!C5+1),OFFSET(Working!D5,0,6*Working!C5+2),OFFSET(Working!D5,0,6*Working!C5+3))","v":"Jack did his science homework this week. His homework took 39, 47 and 23 minutes. Find the total time Jack studied this week."}]
[]
[{"$f":"Working!B6","v":"3)"},{"$f":"CONCATENATE(OFFSET(Working!D6,0,6*Working!C6+1),OFFSET(Working!D6,0,6*Working!C6+2),OFFSET(Working!D6,0,6*Working!C6+3))","v":"Athol played golf at his local club. His scores were 90, 68, 72 and 76 strokes. Find the total score Athol achieved."}]
[]
[{"$f":"Working!B7","v":"4)"},{"$f":"CONCATENATE(OFFSET(Working!D7,0,6*Working!C7+1),OFFSET(Working!D7,0,6*Working!C7+2),OFFSET(Working!D7,0,6*Working!C7+3))","v":"Bob did his science homework this week. His homework took 39, 47 and 23 minutes. Find the total time Bob studied this week."}]
[]
[{"$f":"Working!B8","v":"5)"},{"$f":"CONCATENATE(OFFSET(Working!D8,0,6*Working!C8+1),OFFSET(Working!D8,0,6*Working!C8+2),OFFSET(Working!D8,0,6*Working!C8+3))","v":"Sally held her breath while underwater. Her times were 31, 39, 45, 35 and 30 seconds. Find the total time Sally stayed underwater."}]
[]
[{"$f":"Working!B9","v":"6)"},{"$f":"CONCATENATE(OFFSET(Working!D9,0,6*Working!C9+1),OFFSET(Working!D9,0,6*Working!C9+2),OFFSET(Working!D9,0,6*Working!C9+3))","v":"Abbi held her breath while underwater. Her times were 27, 40, 46, 39 and 42 seconds. Find the total time Abbi stayed underwater."}]
[]
[{"$f":"Working!B10","v":"7)"},{"$f":"CONCATENATE(OFFSET(Working!D10,0,6*Working!C10+1),OFFSET(Working!D10,0,6*Working!C10+2),OFFSET(Working!D10,0,6*Working!C10+3))","v":"Will earned his money baby sitting. His payments were $31, $33, $28, $39 and $28. Find the total income Will earned."}]
[]
[{"$f":"Working!B11","v":"8)"},{"$f":"CONCATENATE(OFFSET(Working!D11,0,6*Working!C11+1),OFFSET(Working!D11,0,6*Working!C11+2),OFFSET(Working!D11,0,6*Working!C11+3))","v":"Jan held his breath while underwater. His times were 22, 40 and 36 seconds. Find the total time Jan stayed underwater."}]
[]
[{"$f":"Working!B12","v":"9)"},{"$f":"CONCATENATE(OFFSET(Working!D12,0,6*Working!C12+1),OFFSET(Working!D12,0,6*Working!C12+2),OFFSET(Working!D12,0,6*Working!C12+3))","v":"Jan went shopping for his music DVD's. His CD's cost $26, $25, $21 and $20. Find the total price Jan paid."}]
[]
[{"$f":"Working!B13","v":"10)"},{"$f":"CONCATENATE(OFFSET(Working!D13,0,6*Working!C13+1),OFFSET(Working!D13,0,6*Working!C13+2),OFFSET(Working!D13,0,6*Working!C13+3))","v":"Athol purchased his sweet buns at a local shop. His purchases included 40, 30, 30, 30 and 20 buns. Find the total number Athol purchased."}]
[]
[{"$f":"Working!B14","v":"11)"},{"$f":"CONCATENATE(OFFSET(Working!D14,0,6*Working!C14+1),OFFSET(Working!D14,0,6*Working!C14+2),OFFSET(Working!D14,0,6*Working!C14+3))","v":"Phil trained at his local pool for the 50m backstroke. His daily training was 30, 20, 30 and 20 laps. Find the total number of laps Phil swam."}]
[]
[{"$f":"Working!B15","v":"12)"},{"$f":"CONCATENATE(OFFSET(Working!D15,0,6*Working!C15+1),OFFSET(Working!D15,0,6*Working!C15+2),OFFSET(Working!D15,0,6*Working!C15+3))","v":"Abbi posted her birthday party invitations on different days. Her mailing included 34, 34, 43, 32 and 35 invitations. Find the total number Abbi posted."}]
[]
[{"$f":"Working!B16","v":"13)"},{"$f":"CONCATENATE(OFFSET(Working!D16,0,6*Working!C16+1),OFFSET(Working!D16,0,6*Working!C16+2),OFFSET(Working!D16,0,6*Working!C16+3))","v":"Jane rode her motorbike to different work sites. Her distances were 48, 45, 46 and 32 kilometres. Find the total distance Jane drove to work."}]
[]
[{"$f":"Working!B17","v":"14)"},{"$f":"CONCATENATE(OFFSET(Working!D17,0,6*Working!C17+1),OFFSET(Working!D17,0,6*Working!C17+2),OFFSET(Working!D17,0,6*Working!C17+3))","v":"Boris held his breath while underwater. His times were 31, 39, 45, 35 and 30 seconds. Find the total time Boris stayed underwater."}]
[]
[{"$f":"Working!B18","v":"15)"},{"$f":"CONCATENATE(OFFSET(Working!D18,0,6*Working!C18+1),OFFSET(Working!D18,0,6*Working!C18+2),OFFSET(Working!D18,0,6*Working!C18+3))","v":"Gail purchased her lollies at a local shop. Her purchases included 30, 30, 30 and 30 lollies. Find the total number Gail purchased."}]
[]
[{"$f":"Working!B19","v":"16)"},{"$f":"CONCATENATE(OFFSET(Working!D19,0,6*Working!C19+1),OFFSET(Working!D19,0,6*Working!C19+2),OFFSET(Working!D19,0,6*Working!C19+3))","v":"Paula did her science homework this week. Her homework took 39, 47 and 23 minutes. Find the total time Paula studied this week."}]
[]
[{"$f":"Working!B20","v":"17)"},{"$f":"CONCATENATE(OFFSET(Working!D20,0,6*Working!C20+1),OFFSET(Working!D20,0,6*Working!C20+2),OFFSET(Working!D20,0,6*Working!C20+3))","v":"Janet rode her bike to different work sites. Her distances were 33, 36, 47 and 35 kilometres. Find the total distance Janet drove to work."}]
[]
[{"$f":"Working!B21","v":"18)"},{"$f":"CONCATENATE(OFFSET(Working!D21,0,6*Working!C21+1),OFFSET(Working!D21,0,6*Working!C21+2),OFFSET(Working!D21,0,6*Working!C21+3))","v":"Jill posted her birthday party invitations on different days. Her mailing included 34, 34, 43, 32 and 35 invitations. Find the total number Jill posted."}]
[]
[{"$f":"Working!B22","v":"19)"},{"$f":"CONCATENATE(OFFSET(Working!D22,0,6*Working!C22+1),OFFSET(Working!D22,0,6*Working!C22+2),OFFSET(Working!D22,0,6*Working!C22+3))","v":"Terri played cricket for her local team. Her scores were 47, 12, 29 and 30 runs. Find the total score Terri achieved."}]
[]
[{"$f":"Working!B23","v":"20)"},{"$f":"CONCATENATE(OFFSET(Working!D23,0,6*Working!C23+1),OFFSET(Working!D23,0,6*Working!C23+2),OFFSET(Working!D23,0,6*Working!C23+3))","v":"Harry played touch football for his school team. His scores were 5, 8 and 5 points. Find the total score Harry achieved."}]

{"sheet":"Answers","index":2,"n_rows":43,"n_cols":3,"rows_kept":43,"cut":false,"hidden":false,"merged":[[0,0,0,2]]}
[{"$f":"OFFSET(Working!D1,0,6*Working!C3)","v":"ADDITION PROBLEMS"}]
[null,"Answers"]
["Evaluate the following",null,{"$f":"CONCATENATE(\"WorkSheet \",Working!I1,Working!H1)","v":"WorkSheet APL-593"}]
[]
[{"$f":"Working!B4","v":"1)"},{"$f":"CONCATENATE(OFFSET(Working!D4,0,6*Working!C4+1),OFFSET(Working!D4,0,6*Working!C4+2),OFFSET(Working!D4,0,6*Working!C4+3))","v":"Jack went shopping for his music CD's. His CD's cost $20, $27, $21, $21 and $23. Find the total price Jack paid."},{"$f":"OFFSET(Working!D4,0,6*Working!C4+4)","v":"$112"}]
[]
[{"$f":"Working!B5","v":"2)"},{"$f":"CONCATENATE(OFFSET(Working!D5,0,6*Working!C5+1),OFFSET(Working!D5,0,6*Working!C5+2),OFFSET(Working!D5,0,6*Working!C5+3))","v":"Jack did his science homework this week. His homework took 39, 47 and 23 minutes. Find the total time Jack studied this week."},{"$f":"OFFSET(Working!D5,0,6*Working!C5+4)","v":"109 minutes"}]
[]
[{"$f":"Working!B6","v":"3)"},{"$f":"CONCATENATE(OFFSET(Working!D6,0,6*Working!C6+1),OFFSET(Working!D6,0,6*Working!C6+2),OFFSET(Working!D6,0,6*Working!C6+3))","v":"Athol played golf at his local club. His scores were 90, 68, 72 and 76 strokes. Find the total score Athol achieved."},{"$f":"OFFSET(Working!D6,0,6*Working!C6+4)","v":"306 strokes"}]
[]
[{"$f":"Working!B7","v":"4)"},{"$f":"CONCATENATE(OFFSET(Working!D7,0,6*Working!C7+1),OFFSET(Working!D7,0,6*Working!C7+2),OFFSET(Working!D7,0,6*Working!C7+3))","v":"Bob did his science homework this week. His homework took 39, 47 and 23 minutes. Find the total time Bob studied this week."},{"$f":"OFFSET(Working!D7,0,6*Working!C7+4)","v":"109 minutes"}]
[]
[{"$f":"Working!B8","v":"5)"},{"$f":"CONCATENATE(OFFSET(Working!D8,0,6*Working!C8+1),OFFSET(Working!D8,0,6*Working!C8+2),OFFSET(Working!D8,0,6*Working!C8+3))","v":"Sally held her breath while underwater. Her times were 31, 39, 45, 35 and 30 seconds. Find the total time Sally stayed underwater."},{"$f":"OFFSET(Working!D8,0,6*Working!C8+4)","v":"180 seconds"}]
[]
[{"$f":"Working!B9","v":"6)"},{"$f":"CONCATENATE(OFFSET(Working!D9,0,6*Working!C9+1),OFFSET(Working!D9,0,6*Working!C9+2),OFFSET(Working!D9,0,6*Working!C9+3))","v":"Abbi held her breath while underwater. Her times were 27, 40, 46, 39 and 42 seconds. Find the total time Abbi stayed underwater."},{"$f":"OFFSET(Working!D9,0,6*Working!C9+4)","v":"194 seconds"}]
[]
[{"$f":"Working!B10","v":"7)"},{"$f":"CONCATENATE(OFFSET(Working!D10,0,6*Working!C10+1),OFFSET(Working!D10,0,6*Working!C10+2),OFFSET(Working!D10,0,6*Working!C10+3))","v":"Will earned his money baby sitting. His payments were $31, $33, $28, $39 and $28. Find the total income Will earned."},{"$f":"OFFSET(Working!D10,0,6*Working!C10+4)","v":"$159"}]
[]
[{"$f":"Working!B11","v":"8)"},{"$f":"CONCATENATE(OFFSET(Working!D11,0,6*Working!C11+1),OFFSET(Working!D11,0,6*Working!C11+2),OFFSET(Working!D11,0,6*Working!C11+3))","v":"Jan held his breath while underwater. His times were 22, 40 and 36 seconds. Find the total time Jan stayed underwater."},{"$f":"OFFSET(Working!D11,0,6*Working!C11+4)","v":"98 seconds"}]
[]
[{"$f":"Working!B12","v":"9)"},{"$f":"CONCATENATE(OFFSET(Working!D12,0,6*Working!C12+1),OFFSET(Working!D12,0,6*Working!C12+2),OFFSET(Working!D12,0,6*Working!C12+3))","v":"Jan went shopping for his music DVD's. His CD's cost $26, $25, $21 and $20. Find the total price Jan paid."},{"$f":"OFFSET(Working!D12,0,6*Working!C12+4)","v":"$92"}]
[]
[{"$f":"Working!B13","v":"10)"},{"$f":"CONCATENATE(OFFSET(Working!D13,0,6*Working!C13+1),OFFSET(Working!D13,0,6*Working!C13+2),OFFSET(Working!D13,0,6*Working!C13+3))","v":"Athol purchased his sweet buns at a local shop. His purchases included 40, 30, 30, 30 and 20 buns. Find the total number Athol purchased."},{"$f":"OFFSET(Working!D13,0,6*Working!C13+4)","v":"150 buns"}]
[]
[{"$f":"Working!B14","v":"11)"},{"$f":"CONCATENATE(OFFSET(Working!D14,0,6*Working!C14+1),OFFSET(Working!D14,0,6*Working!C14+2),OFFSET(Working!D14,0,6*Working!C14+3))","v":"Phil trained at his local pool for the 50m backstroke. His daily training was 30, 20, 30 and 20 laps. Find the total number of laps Phil swam."},{"$f":"OFFSET(Working!D14,0,6*Working!C14+4)","v":"100 laps"}]
[]
[{"$f":"Working!B15","v":"12)"},{"$f":"CONCATENATE(OFFSET(Working!D15,0,6*Working!C15+1),OFFSET(Working!D15,0,6*Working!C15+2),OFFSET(Working!D15,0,6*Working!C15+3))","v":"Abbi posted her birthday party invitations on different days. Her mailing included 34, 34, 43, 32 and 35 invitations. Find the total number Abbi posted."},{"$f":"OFFSET(Working!D15,0,6*Working!C15+4)","v":"178 invitations"}]
[]
[{"$f":"Working!B16","v":"13)"},{"$f":"CONCATENATE(OFFSET(Working!D16,0,6*Working!C16+1),OFFSET(Working!D16,0,6*Working!C16+2),OFFSET(Working!D16,0,6*Working!C16+3))","v":"Jane rode her motorbike to different work sites. Her distances were 48, 45, 46 and 32 kilometres. Find the total distance Jane drove to work."},{"$f":"OFFSET(Working!D16,0,6*Working!C16+4)","v":"171 kilometres"}]
[]
[{"$f":"Working!B17","v":"14)"},{"$f":"CONCATENATE(OFFSET(Working!D17,0,6*Working!C17+1),OFFSET(Working!D17,0,6*Working!C17+2),OFFSET(Working!D17,0,6*Working!C17+3))","v":"Boris held his breath while underwater. His times were 31, 39, 45, 35 and 30 seconds. Find the total time Boris stayed underwater."},{"$f":"OFFSET(Working!D17,0,6*Working!C17+4)","v":"180 seconds"}]
[]
[{"$f":"Working!B18","v":"15)"},{"$f":"CONCATENATE(OFFSET(Working!D18,0,6*Working!C18+1),OFFSET(Working!D18,0,6*Working!C18+2),OFFSET(Working!D18,0,6*Working!C18+3))","v":"Gail purchased her lollies at a local shop. Her purchases included 30, 30, 30 and 30 lollies. Find the total number Gail purchased."},{"$f":"OFFSET(Working!D18,0,6*Working!C18+4)","v":"120 lollies"}]
[]
[{"$f":"Working!B19","v":"16)"},{"$f":"CONCATENATE(OFFSET(Working!D19,0,6*Working!C19+1),OFFSET(Working!D19,0,6*Working!C19+2),OFFSET(Working!D19,0,6*Working!C19+3))","v":"Paula did her science homework this week. Her homework took 39, 47 and 23 minutes. Find the total time Paula studied this week."},{"$f":"OFFSET(Working!D19,0,6*Working!C19+4)","v":"109 minutes"}]
[]
[{"$f":"Working!B20","v":"17)"},{"$f":"CONCATENATE(OFFSET(Working!D20,0,6*Working!C20+1),OFFSET(Working!D20,0,6*Working!C20+2),OFFSET(Working!D20,0,6*Working!C20+3))","v":"Janet rode her bike to different work sites. Her distances were 33, 36, 47 and 35 kilometres. Find the total distance Janet drove to work."},{"$f":"OFFSET(Working!D20,0,6*Working!C20+4)","v":"151 kilometres"}]
[]
[{"$f":"Working!B21","v":"18)"},{"$f":"CONCATENATE(OFFSET(Working!D21,0,6*Working!C21+1),OFFSET(Working!D21,0,6*Working!C21+2),OFFSET(Working!D21,0,6*Working!C21+3))","v":"Jill posted her birthday party invitations on different days. Her mailing included 34, 34, 43, 32 and 35 invitations. Find the total number Jill posted."},{"$f":"OFFSET(Working!D21,0,6*Working!C21+4)","v":"178 invitations"}]
[]
[{"$f":"Working!B22","v":"19)"},{"$f":"CONCATENATE(OFFSET(Working!D22,0,6*Working!C22+1),OFFSET(Working!D22,0,6*Working!C22+2),OFFSET(Working!D22,0,6*Working!C22+3))","v":"Terri played cricket for her local team. Her scores were 47, 12, 29 and 30 runs. Find the total score Terri achieved."},{"$f":"OFFSET(Working!D22,0,6*Working!C22+4)","v":"118 runs"}]
[]
[{"$f":"Working!B23","v":"20)"},{"$f":"CONCATENATE(OFFSET(Working!D23,0,6*Working!C23+1),OFFSET(Working!D23,0,6*Working!C23+2),OFFSET(Working!D23,0,6*Working!C23+3))","v":"Harry played touch football for his school team. His scores were 5, 8 and 5 points. Find the total score Harry achieved."},{"$f":"OFFSET(Working!D23,0,6*Working!C23+4)","v":"18 points"}]

{"sheet":"Working","index":3,"n_rows":83,"n_cols":207,"rows_kept":83,"cut":false,"hidden":true,"merged":[]}
[null,null,null,"ADDITION PROBLEMS",null,null,null,{"$f":"INT(900*RAND()+100)","v":593},"APL-","AVERAGES",null,null,null,null,null,"FRACTION PROBLEMS",null,null,null,null,null,"MULTIPLICATION PROBLEMS",null,null,null,null,null,"PROBLEM SOLVING"]
[null,null,null,null,null,null,null,null,null,null,null,null,null,null,null,null,null,null,null,null,null,null,null,null,null,null,null,null,null,null,null,null,null,null,null,null,null,null,null,null,null,null,null,null,null,null,null,null,null,null,null,null,null,null,null,null,null,null,null,"Answer"]
[null,null,0,null,null,null,null,null,null,null,null,null,null,null,null,null,null,null,null,null,null,null,null,null,null,null,null,null,"Name","Type",null,null,null,null,null,null,null,null,null,null,null,null,null,null,null,null,null,null,null,null,null,null,null,null,null,null,null,null,null,null,null,"Names",null,null,null,"Type","Number",null,null,"Amount",null,null,null,null,null,null,null,null,null,null,null,null,null,null,null,null,null,"Name","Type",null,null,null,null,null,null,null,null,null,null,null,null,null,null,null,null,null,null,null,null,null,null,null,null,null,null,null,null,"Type","Number",null,null,"Amount",null,null,null,null,null,null,null,null,null,null,null,null,null,null,null,null,null,null,null,null,null,null,null,3,null,null,null,null,null,null,2,2,null,null,null,null,null,null,null,null,"Name","Type",null,null,null,null,null,null,null,null,null,null,null,null,null,null,null,null,null,null,null,null,null,null,null,null,null,"Type","Number",null,null,null,"Amount"]
[1,{"$f":"CONCATENATE(A4,\")\")","v":"1)"},0,null,{"$f":"BC4","v":"Jack went shopping for his music CD's. "},{"$f":"BD4","v":"His CD's cost $20, $27, $21, $21 and $23. "},{"$f":"BE4","v":"Find the total price Jack paid."},{"$f":"BF4","v":"$112"},null,null,{"$f":"DF4","v":"Jack rode his motorbike to different work sites. "},{"$f":"DG4","v":"His distances were 23, 21, 26 and 21 kilometres. "},{"$f":"DH4","v":"Find the average distance Jack drove to work."},{"$f":"DI4","v":"22 kilometres"},null,null,{"$f":"CONCATENATE(ET4,EU4,\" of \",ES4,EW4)","v":"Find nine tenths of 630m"},null,null,{"$f":"CONCATENATE(EX4,EW4)","v":"567m"},null,null,{"$f":"FZ4","v":"Jack ran seven days each week. "},{"$f":"GA4","v":"Each day he ran 4 km . "},{"$f":"GB4","v":"Find the total distance run by Jack each week."},{"$f":"GC4","v":"28km"},null,null,{"$f":"INT(80*RAND()+1)","v":28},{"$f":"INT(9*RAND()+1)","v":2},{"$f":"INT(5*RAND()+1)","v":1},{"$f":"(AD4-1)*5+AE4","v":6},{"$f":"OFFSET($BJ$4,(AC4-1),0)","v":"Jack"},{"$f":"OFFSET($BM$4,(AC4-1),0)","v":"he"},{"$f":"OFFSET($BN$4,(AF4-1),0)","v":" went shopping for"},{"$f":"OFFSET($BK$4,(AC4-1),0)","v":" his "},{"$f":"OFFSET($BO$4,(AF4-1),0)","v":"music CD's. "},{"$f":"OFFSET($BL$4,(AC4-1),0)","v":"His "},{"$f":"OFFSET($CB$4,(AF4-1),0)","v":"CD's cost "},{"$f":"CONCATENATE(OFFSET($BR$4,(AF4-1),0),OFFSET($BV$4,(AF4-1),0))","v":"$20"},{"$f":"IF(OFFSET($BW$4,(AF4-1),0)=0,\"\",CONCATENATE(\", \",OFFSET($BR$4,(AF4-1),0),OFFSET($BW$4,(AF4-1),0)))","v":", $27"},{"$f":"IF(OFFSET($BX$4,(AF4-1),0)=0,\"\",CONCATENATE(\", \",OFFSET($BR$4,(AF4-1),0),OFFSET($BX$4,(AF4-1),0)))","v":", $21"},{"$f":"IF(OFFSET($BY$4,(AF4-1),0)=0,\"\",CONCATENATE(\", \",OFFSET($BR$4,(AF4-1),0),OFFSET($BY$4,(AF4-1),0)))","v":", $21"},{"$f":"CONCATENATE(\" and \",OFFSET($BR$4,(AF4-1),0),OFFSET($BZ$4,(AF4-1),0))","v":" and $23"},{"$f":"IF(OFFSET($CA$4,(AF4-1),0)=\"\",\"\",OFFSET($CA$4,(AF4-1),0))","v":""},{"$f":"IF(OFFSET($BR$4,(AF4-1),0)=\"\",\"\",OFFSET($BR$4,(AF4-1),0))","v":"$"},{"$f":"IF(OFFSET($CA$4,(AF4-1),0)=\"\",\"\",OFFSET($CA$4,(AF4-1),0))","v":""},{"$f":"OFFSET($CC$4,(AD4-1),0)","v":". "},{"$f":"OFFSET($CE$4,(AD4-1),0)","v":"Find the total"},{"$f":"IF(OFFSET($CD$4,(AF4-1),0)=\"\",\"\",OFFSET($CD$4,(AF4-1),0))","v":" price "},{"$f":"IF(OFFSET($CF$4,(AD4-1),0)=\"\",\"\",OFFSET($CF$4,(AD4-1),0))","v":""},{"$f":"OFFSET($BQ$4,(AD4-1),0)","v":" paid"},{"$f":"IF(OFFSET($CH$4,(AD4-1),0)=\"\",\"\",OFFSET($CH$4,(AD4-1),0))","v":"."},null,{"$f":"CONCATENATE(AG4,AI4,AJ4,AK4)","v":"Jack went shopping for his music CD's. "},{"$f":"CONCATENATE(AL4,AM4,AN4,AO4,AP4,AQ4,AR4,AS4,AV4)","v":"His CD's cost $20, $27, $21, $21 and $23. "},{"$f":"CONCATENATE(AW4,AX4,AY4,AG4,AZ4,BA4)","v":"Find the total price Jack paid."},{"$f":"OFFSET($BI$4,(AF4-1),0)","v":"$112"},null,{"$f":"BV4+BW4+BX4+BY4+BZ4","v":118},{"$f":"CONCATENATE(BR4,BH4,CA4)","v":"118 runs"},"Alan"," his ","His ","he"," played cricket for","local team. ",null," achieved",null,{"$f":"INT(30*RAND()+20)","v":32},{"$f":"INT(30*RAND()+20)","v":49},{"$f":"INT(30*RAND()+20)","v":24},{"$f":"INT(30*RAND()+20)","v":47},{"$f":"IF(BS4<30,0,BS4-20)","v":12},{"$f":"IF(BT4<30,0,BT4-20)","v":29},{"$f":"IF(BU4<30,0,BU4-20)","v":0},{"$f":"INT(30*RAND()+20)","v":30}," runs","scores were ",". "," score ","Find the total",null,null,".",null,{"$f":"INT(40*RAND()+1)","v":16},{"$f":"INT(9*RAND()+1)","v":8},{"$f":"INT(5*RAND()+1)","v":2},{"$f":"(CK4-1)*5+CL4","v":37},{"$f":"OFFSET($DN$4,(CM4-1),0)","v":" rode"},{"$f":"OFFSET($DO$4,(CM4-1),0)","v":"motorbike to different work sites. "},{"$f":"OFFSET($EF$4,(CM4-1),0)","v":"distances were "},{"$f":"CONCATENATE(OFFSET($DR$4,(CM4-1),0),OFFSET($DS$4,(CM4-1),0))","v":"23"},{"$f":"IF(OFFSET($DW$4,(CM4-1),0)=0,\"\",CONCATENATE(\", \",OFFSET($DR$4,(CM4-1),0),OFFSET($DW$4,(CM4-1),0)))","v":""},{"$f":"IF(OFFSET($DX$4,(CM4-1),0)=0,\"\",CONCATENATE(\", \",OFFSET($DR$4,(CM4-1),0),OFFSET($DX$4,(CM4-1),0)))","v":", 21"},{"$f":"IF(OFFSET($DY$4,(CM4-1),0)=0,\"\",CONCATENATE(\", \",OFFSET($DR$4,(CM4-1),0),OFFSET($DY$4,(CM4-1),0)))","v":", 26"},{"$f":"CONCATENATE(\" and \",OFFSET($DR$4,(CM4-1),0),OFFSET($ED$4,(CM4-1),0))","v":" and 21"},{"$f":"IF(OFFSET($EE$4,(CM4-1),0)=\"\",\"\",OFFSET($EE$4,(CM4-1),0))","v":" kilometres"},{"$f":"OFFSET($EG$4,(CM4-1),0)","v":" rode "},{"$f":"IF(OFFSET($EH$4,(CM4-1),0)=\"\",\"\",OFFSET($EH$4,(CM4-1),0))","v":". "},{"$f":"OFFSET($EJ$4,(CK4-1),0)","v":"Find the average"},{"$f":"OFFSET($EI$4,(CM4-1),0)","v":" distance "},{"$f":"IF(OFFSET($EK$4,(CK4-1),0)=\"\",\"\",OFFSET($EK$4,(CK4-1),0))","v":""},{"$f":"IF(OFFSET($EL$4,(CK4-1),0)=\"\",\"\",OFFSET($EL$4,(CK4-1),0))","v":""},{"$f":"OFFSET($DQ$4,(CK4-1),0)","v":" drove to work"},{"$f":"IF(OFFSET($EM$4,(CK4-1),0)=\"\",\"\",OFFSET($EM$4,(CK4-1),0))","v":"."},null,{"$f":"CONCATENATE(AG4,CN4,AJ4,CO4)","v":"Jack rode his motorbike to different work sites. "},{"$f":"CONCATENATE(AL4,CP4,CQ4,CR4,CS4,CT4,CU4,CV4,CX4)","v":"His distances were 23, 21, 26 and 21 kilometres. "},{"$f":"CONCATENATE(CY4,CZ4,DA4,AG4,DB4,DC4,DD4)","v":"Find the average distance Jack drove to work."},{"$f":"OFFSET($DM$4,(CM4-1),0)","v":"22 kilometres"},{"$f":"IF(OFFSET($CC$4,(CL4-1),0)=\"\",\"\",OFFSET($CC$4,(CL4-1),0))","v":". "},{"$f":"(DZ4+ED4)/(EA4+1)","v":21},{"$f":"DK4","v":21},{"$f":"CONCATENATE(DR4,DL4,EE4)","v":"21 runs"}," played cricket for","local team. ",null," achieved",null,{"$f":"INT(80*RAND())","v":59},{"$f":"INT(50*RAND())","v":28},{"$f":"INT(40*RAND())","v":1},{"$f":"INT(15*RAND()+5)","v":13},{"$f":"IF(DS4<20,0,DS4-18)","v":41},{"$f":"IF(DT4<20,0,DT4-18)","v":10},{"$f":"IF(DU4<11,0,DU4-10)","v":0},{"$f":"SUM(DV4:DY4)","v":64},{"$f":"COUNTIF(DV4:DY4,\">0\")","v":3},{"$f":"INT(DZ4/EA4)","v":21},{"$f":"DZ4 -INT(DZ4/EA4)*EA4","v":1},{"$f":"IF(EA4=1,EB4-EC4+2,EB4-EC4)","v":20}," runs","scores were "," swam ",". "," score ","Find the average",null,null,".",null,{"$f":"INT(10*RAND()+1)","v":7},{"$f":"IF($EP$3=1,INT(5*RAND()+1),IF($EP$3=2,INT(6*RAND()+1),INT(17*RAND()+1)))","v":17},{"$f":"INT(20*RAND()+1)","v":5},{"$f":"INT(10*RAND())","v":5},{"$f":"EO4*OFFSET($FB$4,(EP4-1),0)*OFFSET($FC$4,(EP4-1),0)","v":630},"Find ",{"$f":"OFFSET($FA$4,(EP4-1),0)","v":"nine tenths"},{"$f":"IF(OFFSET($FD$4,(EQ4-1),0)=\"\",\"\",OFFSET($FD$4,(EQ4-1),0))","v":""},{"$f":"IF(OFFSET($FE$4,(EQ4-1),0)=\"\",\"\",OFFSET($FE$4,(EQ4-1),0))","v":"m"},{"$f":"ES4*OFFSET($FC$4,(EP4-1),0)/OFFSET($FB$4,(EP4-1),0)","v":567},null,null,"a half",2,1,null,null,null,{"$f":"INT(40*RAND()+1)","v":16},{"$f":"INT(9*RAND()+1)","v":1},{"$f":"INT(5*RAND()+1)","v":5},{"$f":"(FH4-1)*5+FI4","v":5},{"$f":"OFFSET($GH$4,(FJ4-1),0)","v":" ran "},{"$f":"OFFSET($GI$4,(FJ4-1),0)","v":"seven days each week. "},{"$f":"OFFSET($GR$4,(FJ4-1),0)","v":"Each day "},{"$f":"OFFSET($GS$4,(FJ4-1),0)","v":" ran "},{"$f":"IF(OFFSET($GM$4,(FJ4-1),0)=\"\",\"\",OFFSET($GM$4,(FJ4-1),0))","v":""},{"$f":"OFFSET($GN$4,(FJ4-1),0)","v":4},{"$f":"IF(OFFSET($GP$4,(FJ4-1),0)=\"\",\"\",OFFSET($GP$4,(FJ4-1),0))","v":" km "},{"$f":"OFFSET($GT$4,(FH4-1),0)","v":". "},{"$f":"OFFSET(GV$4,(FH4-1),0)","v":"Find the total distance"},{"$f":"IF(OFFSET($GU$4,(FJ4-1),0)=\"\",\"\",OFFSET($GU$4,(FJ4-1),0))","v":" run "},{"$f":"IF(OFFSET($GW$4,(FH4-1),0)=\"\",\"\",OFFSET($GW$4,(FH4-1),0))","v":"by "},{"$f":"IF(OFFSET($GX$4,(FH4-1),0)=\"\",\"\",OFFSET($GX$4,(FH4-1),0))","v":""},{"$f":"OFFSET($GL$4,(FH4-1),0)","v":" each week"},{"$f":"IF(OFFSET($GY$4,(FH4-1),0)=\"\",\"\",OFFSET($GY$4,(FH4-1),0))","v":"."},null,{"$f":"CONCATENATE(AG4,FK4,FL4)","v":"Jack ran seven days each week. "},{"$f":"CONCATENATE(FM4,AH4,FN4,FO4,FP4,FQ4,FR4)","v":"Each day he ran 4 km . "},{"$f":"CONCATENATE(FS4,FT4,FU4,AG4,FV4,FW4,FX4)","v":"Find the total distance run by Jack each week."},{"$f":"OFFSET($GG$4,(FJ4-1),0)","v":"28km"},{"$f":"IF(OFFSET($BG$4,(FI4-1),0)=\"\",\"\",OFFSET($BG$4,(FI4-1),0))","v":""},{"$f":"GJ4*GN4*GO4+GK4","v":200},{"$f":"GE4","v":200},{"$f":"CONCATENATE(GM4,GF4,GQ4)","v":"200m"}," swam ","twice a week. ",2,null," each week",null,{"$f":"INT(5*RAND()+1)","v":2},50," laps (50m each) ","m","Each day "," swam ",". "," swum ","Find the total distance","by ",null,"."]
[2,"2)",0,null,{"$f":"BC5","v":"Jack did his science homework this week. "},{"$f":"BD5","v":"His homework took 39, 47 and 23 minutes. "},{"$f":"BE5","v":"Find the total time Jack studied this week."},{"$f":"BF5","v":"109 minutes"},null,null,{"$f":"DF5","v":"Jack participated in his age group in the discus throwing. "},{"$f":"DG5","v":"His distances were 28, 10, 10, 19 and 16 metres. "},{"$f":"DH5","v":"Find the average result Jack recorded."},{"$f":"DI5","v":"17 metres"},null,null,{"$f":"CONCATENATE(ET5,EU5,\" of \",ES5,EW5)","v":"Find three eights of 96g"},null,null,{"$f":"CONCATENATE(EX5,EW5)","v":"36g"},null,null,{"$f":"FZ5","v":"Jack paid rent each pay day. "},{"$f":"GA5","v":"Each week he paid $200. "},{"$f":"GB5","v":"Find the total of Jack's rent each year."},{"$f":"GC5","v":"$10400"},null,null,{"$f":"INT(80*RAND()+1)","v":28},{"$f":"INT(9*RAND()+1)","v":6},{"$f":"INT(5*RAND()+1)","v":3},28,"Jack",{"$f":"OFFSET($BM$4,(AC5-1),0)","v":"he"}," did",{"$f":"OFFSET($BK$4,(AC5-1),0)","v":" his "},"science homework this week. ",{"$f":"OFFSET($BL$4,(AC5-1),0)","v":"His "},"homework took ",{"$f":"CONCATENATE(OFFSET($BR$4,(AF5-1),0),OFFSET($BV$4,(AF5-1),0))","v":"39"},{"$f":"IF(OFFSET($BW$4,(AF5-1),0)=0,\"\",CONCATENATE(\", \",OFFSET($BR$4,(AF5-1),0),OFFSET($BW$4,(AF5-1),0)))","v":", 47"},{"$f":"IF(OFFSET($BX$4,(AF5-1),0)=0,\"\",CONCATENATE(\", \",OFFSET($BR$4,(AF5-1),0),OFFSET($BX$4,(AF5-1),0)))","v":""},{"$f":"IF(OFFSET($BY$4,(AF5-1),0)=0,\"\",CONCATENATE(\", \",OFFSET($BR$4,(AF5-1),0),OFFSET($BY$4,(AF5-1),0)))","v":""},{"$f":"CONCATENATE(\" and \",OFFSET($BR$4,(AF5-1),0),OFFSET($BZ$4,(AF5-1),0))","v":" and 23"},{"$f":"IF(OFFSET($CA$4,(AF5-1),0)=\"\",\"\",OFFSET($CA$4,(AF5-1),0))","v":" minutes"},""," minutes",". ","Find the total"," time ",""," studied this week",".",null,{"$f":"CONCATENATE(AG5,AI5,AJ5,AK5)","v":"Jack did his science homework this week. "},"His homework took 39, 47 and 23 minutes. ","Find the total time Jack studied this week.",{"$f":"OFFSET($BI$4,(AF5-1),0)","v":"109 minutes"},null,{"$f":"BV5+BW5+BX5+BY5+BZ5","v":74},"74 points","Bill"," his ","His ","he"," played basketball for","local team. ",null," paid",null,{"$f":"INT(15*RAND()+15)","v":26},{"$f":"INT(15*RAND()+15)","v":23},{"$f":"INT(15*RAND()+15)","v":20},{"$f":"INT(15*RAND()+15)","v":19},{"$f":"IF(BS5<23,0,BS5-10)","v":16},{"$f":"IF(BT5<23,0,BT5-10)","v":13},{"$f":"IF(BU5<23,0,BU5-10)","v":0},{"$f":"INT(15*RAND()+15)","v":26}," points","scores were ",". "," score ","Find the total",null,null,".",null,{"$f":"INT(40*RAND()+1)","v":36},{"$f":"INT(9*RAND()+1)","v":3},{"$f":"INT(5*RAND()+1)","v":5},15,{"$f":"OFFSET($DN$4,(CM5-1),0)","v":" participated in"},{"$f":"OFFSET($DO$4,(CM5-1),0)","v":"age group in the discus throwing. "},{"$f":"OFFSET($EF$4,(CM5-1),0)","v":"distances were "},{"$f":"CONCATENATE(OFFSET($DR$4,(CM5-1),0),OFFSET($DS$4,(CM5-1),0))","v":"28"},{"$f":"IF(OFFSET($DW$4,(CM5-1),0)=0,\"\",CONCATENATE(\", \",OFFSET($DR$4,(CM5-1),0),OFFSET($DW$4,(CM5-1),0)))","v":", 10"},{"$f":"IF(OFFSET($DX$4,(CM5-1),0)=0,\"\",CONCATENATE(\", \",OFFSET($DR$4,(CM5-1),0),OFFSET($DX$4,(CM5-1),0)))","v":", 10"},{"$f":"IF(OFFSET($DY$4,(CM5-1),0)=0,\"\",CONCATENATE(\", \",OFFSET($DR$4,(CM5-1),0),OFFSET($DY$4,(CM5-1),0)))","v":", 19"},{"$f":"CONCATENATE(\" and \",OFFSET($DR$4,(CM5-1),0),OFFSET($ED$4,(CM5-1),0))","v":" and 16"},{"$f":"IF(OFFSET($EE$4,(CM5-1),0)=\"\",\"\",OFFSET($EE$4,(CM5-1),0))","v":" metres"},{"$f":"OFFSET($EG$4,(CM5-1),0)","v":" received "},{"$f":"IF(OFFSET($EH$4,(CM5-1),0)=\"\",\"\",OFFSET($EH$4,(CM5-1),0))","v":". "},{"$f":"OFFSET($EJ$4,(CK5-1),0)","v":"Find the average"},{"$f":"OFFSET($EI$4,(CM5-1),0)","v":" result "},{"$f":"IF(OFFSET($EK$4,(CK5-1),0)=\"\",\"\",OFFSET($EK$4,(CK5-1),0))","v":""},{"$f":"IF(OFFSET($EL$4,(CK5-1),0)=\"\",\"\",OFFSET($EL$4,(CK5-1),0))","v":""},{"$f":"OFFSET($DQ$4,(CK5-1),0)","v":" recorded"},{"$f":"IF(OFFSET($EM$4,(CK5-1),0)=\"\",\"\",OFFSET($EM$4,(CK5-1),0))","v":"."},null,"Jack participated in his age group in the discus throwing. ","His distances were 28, 10, 10, 19 and 16 metres. ","Find the average result Jack recorded.",{"$f":"OFFSET($DM$4,(CM5-1),0)","v":"17 metres"},". ",10,{"$f":"DK5","v":10},"10 points"," played basketball for","local team. ",null," paid",null,{"$f":"INT(30*RAND())","v":20},{"$f":"INT(35*RAND())","v":0},{"$f":"INT(35*RAND())","v":21},{"$f":"INT(15*RAND()+5)","v":19},{"$f":"IF(DS5<20,0,DS5-18)","v":2},{"$f":"IF(DT5<20,0,DT5-18)","v":0},{"$f":"IF(DU5<11,0,DU5-10)","v":11},32,{"$f":"COUNTIF(DV5:DY5,\">0\")","v":3},{"$f":"INT(DZ5/EA5)","v":10},{"$f":"DZ5 -INT(DZ5/EA5)*EA5","v":2},{"$f":"IF(EA5=1,EB5-EC5+2,EB5-EC5)","v":8}," points","scores were "," jogged ",". "," score ","Find the average",null,null,".",null,{"$f":"INT(10*RAND()+1)","v":4},{"$f":"IF($EP$3=1,INT(5*RAND()+1),IF($EP$3=2,INT(6*RAND()+1),INT(17*RAND()+1)))","v":12},{"$f":"INT(20*RAND()+1)","v":7},{"$f":"INT(10*RAND())","v":7},{"$f":"EO5*OFFSET($FB$4,(EP5-1),0)*OFFSET($FC$4,(EP5-1),0)","v":96},"Find ",{"$f":"OFFSET($FA$4,(EP5-1),0)","v":"three eights"},{"$f":"IF(OFFSET($FD$4,(EQ5-1),0)=\"\",\"\",OFFSET($FD$4,(EQ5-1),0))","v":""},{"$f":"IF(OFFSET($FE$4,(EQ5-1),0)=\"\",\"\",OFFSET($FE$4,(EQ5-1),0))","v":"g"},{"$f":"ES5*OFFSET($FC$4,(EP5-1),0)/OFFSET($FB$4,(EP5-1),0)","v":36},null,null,"a third",3,1,"$",null,null,{"$f":"INT(40*RAND()+1)","v":10},{"$f":"INT(9*RAND()+1)","v":5},{"$f":"INT(5*RAND()+1)","v":4},24,{"$f":"OFFSET($GH$4,(FJ5-1),0)","v":" paid rent "},{"$f":"OFFSET($GI$4,(FJ5-1),0)","v":"each pay day. "},{"$f":"OFFSET($GR$4,(FJ5-1),0)","v":"Each week "},{"$f":"OFFSET($GS$4,(FJ5-1),0)","v":" paid "},{"$f":"IF(OFFSET($GM$4,(FJ5-1),0)=\"\",\"\",OFFSET($GM$4,(FJ5-1),0))","v":"$"},{"$f":"OFFSET($GN$4,(FJ5-1),0)","v":200},{"$f":"IF(OFFSET($GP$4,(FJ5-1),0)=\"\",\"\",OFFSET($GP$4,(FJ5-1),0))","v":""},{"$f":"OFFSET($GT$4,(FH5-1),0)","v":". "},"Find the total of ",{"$f":"IF(OFFSET($GU$4,(FJ5-1),0)=\"\",\"\",OFFSET($GU$4,(FJ5-1),0))","v":""},{"$f":"IF(OFFSET($GW$4,(FH5-1),0)=\"\",\"\",OFFSET($GW$4,(FH5-1),0))","v":""},{"$f":"IF(OFFSET($GX$4,(FH5-1),0)=\"\",\"\",OFFSET($GX$4,(FH5-1),0))","v":"'s rent"},{"$f":"OFFSET($GL$4,(FH5-1),0)","v":" each year"},{"$f":"IF(OFFSET($GY$4,(FH5-1),0)=\"\",\"\",OFFSET($GY$4,(FH5-1),0))","v":"."},null,"Jack paid rent each pay day. ",{"$f":"CONCATENATE(FM5,AH5,FN5,FO5,FP5,FQ5,FR5)","v":"Each week he paid $200. "},"Find the total of Jack's rent each year.",{"$f":"OFFSET($GG$4,(FJ5-1),0)","v":"$10400"},"",{"$f":"GJ5*GN5*GO5+GK5","v":20},{"$f":"GE5","v":20},"20km"," jogged ","four days each week. ",4,null," each year",null,{"$f":"INT(5*RAND()+1)","v":5},1," km ","km","Each day "," jogged ",". "," jogged ","What is the total of ",null,{"$f":"\"'s savings\"","v":"'s savings"},"?"]
[3,"3)",0,null,"Athol played golf at his local club. ","His scores were 90, 68, 72 and 76 strokes. ","Find the total score Athol achieved.","306 strokes",null,null,"Athol participated in his age group in the high jump. ","His heights were 118, 100, 114, 117 and 108 centimetres. ","Find the average result Athol recorded.","108 centimetres",null,null,"Find seven tenths of 280mL",null,null,"196mL",null,null,"Athol drove to and from work 5 days each week. ","Each day  he drove 7km each way . ","Find the distance driven by Athol each week.","70km",null,null,38,1,5,5,"Athol","he"," played golf at"," his ","local club. ","His ","scores were ","90",", 68",", 72",""," and 76"," strokes",""," strokes",". ","Find the total"," score ",""," achieved",".",null,"Athol played golf at his local club. ","His scores were 90, 68, 72 and 76 strokes. ","Find the total score Athol achieved.","306 strokes",null,18,"18 points","Carl"," his ","His ","he"," played touch football for","school team. ",null," purchased",null,{"$f":"INT(10*RAND()+5)","v":6},{"$f":"INT(10*RAND()+5)","v":13},{"$f":"INT(10*RAND()+5)","v":7},{"$f":"INT(10*RAND()+5)","v":5},{"$f":"IF(BS6<9,0,BS6-5)","v":0},{"$f":"IF(BT6<9,0,BT6-5)","v":8},{"$f":"IF(BU6<9,0,BU6-5)","v":0},{"$f":"INT(10*RAND()+5)","v":5}," points","scores were ",". "," score ","Find the total",null,null,".",null,11,3,1,11," participated in","age group in the high jump. ","heights were ","118",", 100",", 114",", 117"," and 108"," centimetres"," received ",". ","Find the average"," result ","",""," recorded",".",null,"Athol participated in his age group in the high jump. ","His heights were 118, 100, 114, 117 and 108 centimetres. ","Find the average result Athol recorded.","108 centimetres",". ",6,6,"6 points"," played touch football for","school team. ",null," recorded",null,{"$f":"INT(20*RAND())","v":15},{"$f":"INT(20*RAND())","v":11},{"$f":"INT(20*RAND())","v":19},{"$f":"INT(5*RAND()+5)","v":6},{"$f":"IF(DS6<10,0,DS6-8)","v":7},{"$f":"IF(DT6<10,0,DT6-8)","v":3},{"$f":"IF(DU6<10,0,DU6-8)","v":11},27,4,6,3,3," points","scores were "," rode ",". "," score ","Find the average",null,null,".",null,4,16,10,5,280,"Find ","seven tenths","","mL",196,null,null,"a quarter",4,1,null," cents",null,11,8,1,36," drove to and from work ","5 days each week. ","Each day  "," drove ","",7,"km each way ",". ","Find the distance"," driven ","by ",""," each week",".",null,"Athol drove to and from work 5 days each week. ","Each day  he drove 7km each way . ","Find the distance driven by Athol each week.","70km","",20,20,"20km"," rode a bike ","five days each week. ",5,null," each year",null,{"$f":"INT(5*RAND()+1)","v":4},1," km ","km","Each day "," rode ",". "," ridden ","Find the total of ",null,{"$f":"\"'s pocket money\"","v":"'s pocket money"},"."]
[4,"4)",0,null,"Bob did his science homework this week. ","His homework took 39, 47 and 23 minutes. ","Find the total time Bob studied this week.","109 minutes",null,null,"Bob went shopping for his music CD's. ","His CD's cost $17, $20 and $21. ","Find the average price Bob paid.","$22",null,null,"Find four fifths of 100 days",null,null,"80 days",null,null,"Bob saved for Christmas. ","Each week he saved $14. ","What is the total of Bob's savings each year?","$182",null,null,21,6,3,28,"Bob","he"," did"," his ","science homework this week. ","His ","homework took ","39",", 47","",""," and 23"," minutes",""," minutes",". ","Find the total"," time ",""," studied this week",".",null,"Bob did his science homework this week. ","His homework took 39, 47 and 23 minutes. ","Find the total time Bob studied this week.","109 minutes",null,682,"682 points","Doug"," his ","His ","he"," played tenpin bowls at","local bowl-a-rama. ",null," swam",null,{"$f":"INT(100*RAND()+180)","v":198},{"$f":"INT(100*RAND()+180)","v":240},{"$f":"INT(100*RAND()+180)","v":260},{"$f":"INT(100*RAND()+180)","v":214},{"$f":"IF(BS7<210,0,BS7-80)","v":0},{"$f":"IF(BT7<210,0,BT7-80)","v":160},{"$f":"IF(BU7<210,0,BU7-80)","v":180},{"$f":"INT(100*RAND()+120)","v":128}," points","scores were ",". "," score ","Find the total","of laps ",null,".",null,2,2,1,6," went shopping for","music CD's. ","CD's cost ","$17","","",", $20"," and $21",""," saved ",". ","Find the average"," price ","",""," paid",".",null,"Bob went shopping for his music CD's. ","His CD's cost $17, $20 and $21. ","Find the average price Bob paid.","$22",". ",148,148,"148 points"," played tenpin bowls at","local bowl-a-rama. ",null," recorded",null,{"$f":"INT(150*RAND()+90)","v":173},{"$f":"INT(150*RAND()+90)","v":109},{"$f":"INT(150*RAND()+90)","v":132},{"$f":"INT(150*RAND()+90)","v":141},{"$f":"IF(DS7<130,0,DS7)","v":173},{"$f":"IF(DT7<130,0,DT7)","v":0},{"$f":"IF(DU7<130,0,DU7)","v":132},446,3,148,2,146," points","scores were "," walked ",". "," score ","Find the average",null,null,".",null,5,11,17,2,100,"Find ","four fifths",""," days",80,null,null,"a fifth",5,1,null,"cm",null,2,2,5,10," saved ","for Christmas. ","Each week "," saved ","$",14,"",". ","What is the total of ","","","'s savings"," each year","?",null,"Bob saved for Christmas. ","Each week he saved $14. ","What is the total of Bob's savings each year?","$182","",24,24,"24km"," walked ","six days each week. ",6,null," each year",null,{"$f":"INT(5*RAND()+1)","v":4},1," km ","km","Each day "," walked ",". "," walked ","Find the total of ",null,{"$f":"\"'s earnings\"","v":"'s earnings"},"."]
[5,"5)",0,null,"Sally held her breath while underwater. ","Her times were 31, 39, 45, 35 and 30 seconds. ","Find the total time Sally stayed underwater.","180 seconds",null,null,"Sally went shopping for her movie DVD's. ","Her CD's cost $38, $28, $23, $20 and $24. ","Find the average price Sally paid.","$24",null,null,"Find two thirds of 12 lollies",null,null,"8 lollies",null,null,"Sally paid 50c for the stamps on each letter. ","On each of 5 work days she posted 76 letters. ","Find the total cost of Sally's postage each week.","$190",null,null,57,5,4,24,"Sally","she"," held"," her ","breath while underwater. ","Her ","times were ","31",", 39",", 45",", 35"," and 30"," seconds",""," seconds",". ","Find the total"," time ",""," stayed underwater",".",null,"Sally held her breath while underwater. ","Her times were 31, 39, 45, 35 and 30 seconds. ","Find the total time Sally stayed underwater.","180 seconds",null,306,"306 strokes","Earl"," his ","His ","he"," played golf at","local club. ",null," stayed underwater",null,{"$f":"INT(30*RAND()+70)","v":83},{"$f":"INT(30*RAND()+70)","v":87},{"$f":"INT(30*RAND()+70)","v":78},{"$f":"INT(30*RAND()+70)","v":90},{"$f":"IF(BS8<80,0,BS8-15)","v":68},{"$f":"IF(BT8<80,0,BT8-15)","v":72},{"$f":"IF(BU8<80,0,BU8-15)","v":0},{"$f":"INT(30*RAND()+70)","v":76}," strokes","scores were ",". "," score ","Find the total",null,null,".",null,32,2,3,8," went shopping for","movie DVD's. ","CD's cost ","$38",", $28",", $23",", $20"," and $24",""," saved ",". ","Find the average"," price ","",""," paid",".",null,"Sally went shopping for her movie DVD's. ","Her CD's cost $38, $28, $23, $20 and $24. ","Find the average price Sally paid.","$24",". ",89,89,"89 strokes"," played golf at","local club. ",null," stayed underwater",null,{"$f":"INT(45*RAND()+50)","v":87},{"$f":"INT(45*RAND()+50)","v":62},{"$f":"INT(45*RAND()+50)","v":55},{"$f":"INT(25*RAND()+70)","v":91},{"$f":"IF(DS8<70,0,DS8)","v":87},{"$f":"IF(DT8<70,0,DT8)","v":0},{"$f":"IF(DU8<70,0,DU8)","v":0},178,2,89,0,89," strokes","scores were "," ran ",". "," score ","Find the average",null,null,".",null,2,8,15,6,12,"Find ","two thirds",""," lollies",8,null,null,"a tenth",10,1,null,"m",null,17,9,3,43," paid 50c for the stamps ","on each letter. ","On each of 5 work days "," posted ","",76," letters",". ","Find the total cost of ","","","'s postage"," each week",".",null,"Sally paid 50c for the stamps on each letter. ","On each of 5 work days she posted 76 letters. ","Find the total cost of Sally's postage each week.","$190","",28,28,"28km"," ran ","seven days each week. ",7,null," each year",null,{"$f":"INT(5*RAND()+1)","v":4},1," km ","km","Each day "," ran ",". "," run ","Find the total of ",null,{"$f":"\"'s rent\"","v":"'s rent"},"."]
[6,"6)",0,null,"Abbi held her breath while underwater. ","Her times were 27, 40, 46, 39 and 42 seconds. ","Find the total time Abbi stayed underwater.","194 seconds",null,null,"Abbi did her science homework this week. ","Her homework took 49, 31, 38 and 42 minutes. ","Find the average time Abbi studied each day.","42 minutes",null,null,"Find a half of 20 boys",null,null,"10 boys",null,null,"Abbi paid the mortgage each fortnight. ","Each fortnight she paid $620. ","Find the total of Abbi's mortgage each year.","$16120",null,null,61,5,5,25,"Abbi","she"," held"," her ","breath while underwater. ","Her ","times were ","27",", 40",", 46",", 39"," and 42"," seconds",""," seconds",". ","Find the total"," time ",""," stayed underwater",".",null,"Abbi held her breath while underwater. ","Her times were 27, 40, 46, 39 and 42 seconds. ","Find the total time Abbi stayed underwater.","194 seconds",null,112,"$112","Feng"," his ","His ","he"," went shopping for","music CD's. ",null," studied this week","$",{"$f":"INT(10*RAND()+20)","v":29},{"$f":"INT(10*RAND()+20)","v":23},23,20,{"$f":"IF(BS9<23,0,BS9-2)","v":27},21,21,{"$f":"INT(10*RAND()+20)","v":23},null,"CD's cost ",". "," price ","Find the total",null,null,".",null,8,6,3,28," did","science homework this week. ","homework took ","49",", 31",", 38",""," and 42"," minutes"," paid ",". ","Find the average"," time ","",""," studied each day",".",null,"Abbi did her science homework this week. ","Her homework took 49, 31, 38 and 42 minutes. ","Find the average time Abbi studied each day.","42 minutes",". ",22,22,"$22"," went shopping for","music CD's. ",null," studied each day","$",{"$f":"INT(30*RAND()+10)","v":17},{"$f":"INT(30*RAND()+10)","v":15},{"$f":"INT(30*RAND()+10)","v":30},{"$f":"INT(30*RAND()+10)","v":25},{"$f":"IF(DS9<20,0,DS9-10)","v":0},0,20,45,2,22,1,21,null,"CD's cost "," saved ",". "," price ","Find the average",null,null,".",null,10,1,13,6,20,"Find ","a half",""," boys",10,null,null,"an eight",8,1,null,"km",null,19,6,2,27," paid the mortgage ","each fortnight. ","Each fortnight "," paid ","$",620,"",". ","Find the total of ","","","'s mortgage"," each year",".",null,"Abbi paid the mortgage each fortnight. ","Each fortnight she paid $620. ","Find the total of Abbi's mortgage each year.","$16120","",1560,1560,"$1560"," saved ","for a car. ",52,null," each year","$",{"$f":"INT(5*RAND()+1)*10","v":30},1,null,null,"Each week "," saved ",". ",null,"Find the total of ",null,{"$f":"\"'s mortgage\"","v":"'s mortgage"},"."]
[7,"7)",0,null,"Will earned his money baby sitting. ","His payments were $31, $33, $28, $39 and $28. ","Find the total income Will earned.","$159",null,null,"Will earned his money mowing lawns. ","His payments were $37, $29, $28 and $29. ","Find the average income Will earned.","$30",null,null,"Find three eights of 72mg",null,null,"27mg",null,null,"Will paid 50c for the stamps on each letter. ","On each of 5 work days he posted 6 letters. ","Find the total cost of Will's postage each week.","$15",null,null,20,7,2,32,"Will","he"," earned"," his ","money baby sitting. ","His ","payments were ","$31",", $33",", $28",", $39"," and $28","","$","",". ","Find the total"," income ",""," earned",".",null,"Will earned his money baby sitting. ","His payments were $31, $33, $28, $39 and $28. ","Find the total income Will earned.","$159",null,92,"$92","Goran"," his ","His ","he"," went shopping for","music DVD's. ",null," earned","$",{"$f":"INT(10*RAND()+20)","v":27},22,23,26,25,0,21,{"$f":"INT(10*RAND()+20)","v":20},null,"CD's cost ",". "," price ","Find the total",null,null,".",null,32,7,1,31," earned","money mowing lawns. ","payments were ","$37",", $29","",", $28"," and $29","","'s plant grew ",". ","Find the average"," income ","",""," earned",".",null,"Will earned his money mowing lawns. ","His payments were $37, $29, $28 and $29. ","Find the average income Will earned.","$30",". ",25,25,"$25"," went shopping for","music DVD's. ",null," earned","$",{"$f":"INT(30*RAND()+10)","v":16},12,24,36,0,0,14,50,2,25,0,25,null,"CD's cost "," saved ",". "," price ","Find the average",null,null,".",null,3,12,8,2,72,"Find ","three eights","","mg",27,null,null,"three quarters",4,3,null,"g",null,33,9,2,42," paid 50c for the stamps ","on each letter. ","On each of 5 work days "," posted ","",6," letters",". ","Find the total cost of ","","","'s postage"," each week",".",null,"Will paid 50c for the stamps on each letter. ","On each of 5 work days he posted 6 letters. ","Find the total cost of Will's postage each week.","$15","",20800,20800,"$20800"," saved ","for a house. ",26,null," after a year","$",{"$f":"INT(5*RAND()+5)*100","v":800},1,null,null,"Each fortnight "," saved ",". ",null,"Find the height of ",null,{"$f":"\"'s plant\"","v":"'s plant"},"."]
[8,"8)",0,null,"Jan held his breath while underwater. ","His times were 22, 40 and 36 seconds. ","Find the total time Jan stayed underwater.","98 seconds",null,null,"Jan posted his work's mail. ","His mailing included 28, 20, 22 and 24 letters. ","Find the average number Jan posted each time.","24 letters",null,null,"Find three eights of 168cm",null,null,"63cm",null,null,"Jan drove to and from work 5 days each week. ","Each day  he drove 7km each way . ","Find the distance driven by Jan each week.","70km",null,null,25,5,3,23,"Jan","he"," held"," his ","breath while underwater. ","His ","times were ","22","","",", 40"," and 36"," seconds",""," seconds",". ","Find the total"," time ",""," stayed underwater",".",null,"Jan held his breath while underwater. ","His times were 22, 40 and 36 seconds. ","Find the total time Jan stayed underwater.","98 seconds",null,130,"$130","Harry"," his ","His ","he"," went shopping for","movie DVD's. ",null," drove to work","$",{"$f":"INT(30*RAND()+20)","v":26},47,42,25,{"$f":"IF(BS11<30,0,BS11-10)","v":0},{"$f":"IF(BT11<30,0,BT11-2)","v":45},{"$f":"IF(BU11<30,0,BU11-2)","v":40},{"$f":"INT(30*RAND()+20)","v":20},null,"CD's cost ",". "," price ","Find the total",null,null,".",null,2,9,1,41," posted","work's mail. ","mailing included ","28",", 20",", 22",""," and 24"," letters"," posted ",". ","Find the average"," number ","",""," posted each time",".",null,"Jan posted his work's mail. ","His mailing included 28, 20, 22 and 24 letters. ","Find the average number Jan posted each time.","24 letters",". ",24,24,"$24"," went shopping for","movie DVD's. ",null," drove to work","$",38,33,30,25,28,23,20,96,4,24,0,24,null,"CD's cost "," saved ",". "," price ","Find the average",null,null,".",null,7,12,4,7,168,"Find ","three eights","","cm",63,null,null,"two thirds",3,2,null,"mg",null,31,8,1,36," drove to and from work ","5 days each week. ","Each day  "," drove ","",7,"km each way ",". ","Find the distance"," driven ","by ",""," each week",".",null,"Jan drove to and from work 5 days each week. ","Each day  he drove 7km each way . ","Find the distance driven by Jan each week.","70km","",60,60,"$60"," saved ","for a MP3 player. ",12,null," each week","$",{"$f":"INT(10*RAND()+5)","v":5},1,null,null,"Each month "," saved ",". ",null,"Find the distance","by ",null,"."]
[9,"9)",0,null,"Jan went shopping for his music DVD's. ","His CD's cost $26, $25, $21 and $20. ","Find the total price Jan paid.","$92",null,null,"Jan swam in his age group in the 50m freestyle. ","His times were 36, 26, 28, 33 and 30 seconds. ","Find the average time Jan recorded.","30 seconds",null,null,"Find a third of 18 boys",null,null,"6 boys",null,null,"Jan was given pocket money each week. ","Each week he received $4. ","Find the total of Jan's pocket money each year.","$208",null,null,25,2,2,7,"Jan","he"," went shopping for"," his ","music DVD's. ","His ","CD's cost ","$26",", $25","",", $21"," and $20","","$","",". ","Find the total"," price ",""," paid",".",null,"Jan went shopping for his music DVD's. ","His CD's cost $26, $25, $21 and $20. ","Find the total price Jan paid.","$92",null,176,"$176","Juan"," his ","His ","he"," went shopping for","playstation games. ",null," posted","$",{"$f":"INT(50*RAND()+20)","v":64},{"$f":"INT(50*RAND()+20)","v":34},25,52,{"$f":"IF(BS12<30,0,BS12-15)","v":49},19,0,{"$f":"INT(50*RAND()+20)","v":56},null,"CD's cost ",". "," price ","Find the total",null,null,".",null,19,4,1,16," swam in","age group in the 50m freestyle. ","times were ","36",", 26",", 28",", 33"," and 30"," seconds"," earned ",". ","Find the average"," time ","",""," recorded",".",null,"Jan swam in his age group in the 50m freestyle. ","His times were 36, 26, 28, 33 and 30 seconds. ","Find the average time Jan recorded.","30 seconds",". ",39,39,"$39"," went shopping for","playstation games. ",null," posted each time","$",{"$f":"INT(70*RAND()+10)","v":78},{"$f":"INT(70*RAND()+10)","v":48},{"$f":"INT(70*RAND()+10)","v":46},{"$f":"INT(70*RAND()+10)","v":14},68,38,36,156,4,39,0,39,null,"CD's cost "," saved ",". "," price ","Find the average",null,null,".",null,6,2,13,9,18,"Find ","a third",""," boys",6,null,null,"two fifths",5,2,null,"kg",null,2,3,1,11," was given ","pocket money each week. ","Each week "," received ","$",4,"",". ","Find the total of ","","","'s pocket money"," each year",".",null,"Jan was given pocket money each week. ","Each week he received $4. ","Find the total of Jan's pocket money each year.","$208","",1664,1664,"$1664"," saved ","for a holiday. ",52,null," each week","$",{"$f":"INT(50*RAND()+5)","v":32},1,null,null,"Each week "," saved ",". ",null,"Find the total cost of ",null,{"$f":"\"'s postage\"","v":"'s postage"},"."]
[10,"10)",0,null,"Athol purchased his sweet buns at a local shop. ","His purchases included 40, 30, 30, 30 and 20 buns. ","Find the total number Athol purchased.","150 buns",null,null,"Athol posted his birthday party invitations on different days. ","His mailing included 33, 25, 27, 29 and 24 invitations. ","Find the average number Athol posted each time.","27 invitations",null,null,"Find seven eights of 224 cents",null,null,"196 cents",null,null,"Athol drove to and from work 5 days each week. ","Each day  he drove 7km each way . ","Find the distance driven by Athol each week.","70km",null,null,38,3,3,13,"Athol","he"," purchased"," his ","sweet buns at a local shop. ","His ","purchases included ","40",", 30",", 30",", 30"," and 20"," buns",""," buns",". ","Find the total"," number ",""," purchased",".",null,"Athol purchased his sweet buns at a local shop. ","His purchases included 40, 30, 30, 30 and 20 buns. ","Find the total number Athol purchased.","150 buns",null,268,"$268","Len"," his ","His ","he"," went shopping for","PC games. ",null,null,"$",{"$f":"INT(50*RAND()+20)","v":69},65,67,45,54,50,52,{"$f":"INT(50*RAND()+20)","v":67},null,"CD's cost ",". "," price ",null,null,null,null,null,30,9,5,45," posted","birthday party invitations on different days. ","mailing included ","33",", 25",", 27",", 29"," and 24"," invitations"," posted ",". ","Find the average"," number ","",""," posted each time",".",null,"Athol posted his birthday party invitations on different days. ","His mailing included 33, 25, 27, 29 and 24 invitations. ","Find the average number Athol posted each time.","27 invitations",". ",25,25,"$25"," went shopping for","PC games. ",null,null,"$",{"$f":"INT(50*RAND()+10)","v":41},{"$f":"INT(50*RAND()+10)","v":26},{"$f":"INT(50*RAND()+10)","v":29},{"$f":"INT(50*RAND()+10)","v":35},31,16,19,101,4,25,1,24,null,"CD's cost "," saved ",". "," price ",null,null,null,null,null,4,14,3,1,224,"Find ","seven eights",""," cents",196,null,null,"three fifths",5,3,null,"mL",null,1,8,1,36," drove to and from work ","5 days each week. ","Each day  "," drove ","",7,"km each way ",". ","Find the distance"," driven ","by ",""," each week",".",null,"Athol drove to and from work 5 days each week. ","Each day  he drove 7km each way . ","Find the distance driven by Athol each week.","70km","",182,182,"$182"," saved ","for Christmas. ",13,null,null,"$",{"$f":"INT(10*RAND()+10)","v":14},1,null,null,"Each week "," saved ",". ",null,"Find the total of ",null,null,"."]
[11,"11)",0,null,"Phil trained at his local pool for the 50m backstroke. ","His daily training was 30, 20, 30 and 20 laps. ","Find the total number of laps Phil swam.","100 laps",null,null,"Phil held his breath while underwater. ","His times were 56, 38, 36 and 43 seconds. ","Find the average time Phil stayed underwater.","43 seconds",null,null,"Find three quarters of 72mg",null,null,"54mg",null,null,"Phil jogged four days each week. ","Each day he jogged 5 km . ","Find the total distance jogged by Phil each week.","20km",null,null,24,4,4,19,"Phil","he"," trained at"," his ","local pool for the 50m backstroke. ","His ","daily training was ","30",", 20","",", 30"," and 20"," laps",""," laps",". ","Find the total"," number ","of laps "," swam",".",null,"Phil trained at his local pool for the 50m backstroke. ","His daily training was 30, 20, 30 and 20 laps. ","Find the total number of laps Phil swam.","100 laps",null,120,"120 lollies","Mick"," his ","His ","he"," purchased","lollies at a local shop. ",null,null,null,{"$f":"10*INT(3*RAND()+2)","v":40},{"$f":"10*INT(3*RAND()+2)","v":40},{"$f":"10*INT(3*RAND()+2)","v":20},{"$f":"10*INT(3*RAND()+2)","v":30},{"$f":"IF(BS14<30,0,BS14-10)","v":30},{"$f":"IF(BT14<30,0,BT14-10)","v":30},0,{"$f":"10*INT(3*RAND()+2)","v":30}," lollies","purchases included ",". "," number ",null,null,null,null,null,3,5,2,22," held","breath while underwater. ","times were ","56",", 38",", 36",""," and 43"," seconds"," paid ",". ","Find the average"," time ","",""," stayed underwater",".",null,"Phil held his breath while underwater. ","His times were 56, 38, 36 and 43 seconds. ","Find the average time Phil stayed underwater.","43 seconds",". ",108,108,"108 centimetres"," participated in","age group in the high jump. ",null,null,null,{"$f":"INT(50*RAND()+90)","v":118},{"$f":"INT(50*RAND()+90)","v":132},{"$f":"INT(50*RAND()+90)","v":127},{"$f":"INT(50*RAND()+90)","v":101},{"$f":"IF(DS14<20,0,DS14-18)","v":100},114,{"$f":"IF(DU14<11,0,DU14-10)","v":117},432,4,108,0,108," centimetres","heights were "," received ",". "," result ",null,null,null,null,null,{"$f":"2*INT(10*RAND()+1)","v":6},7,8,8,72,"Find ","three quarters","","mg",54,null,null,"four fifths",5,4,null,"L",null,7,1,2,2," jogged ","four days each week. ","Each day "," jogged ","",5," km ",". ","Find the total distance"," jogged ","by ",""," each week",".",null,"Phil jogged four days each week. ","Each day he jogged 5 km . ","Find the total distance jogged by Phil each week.","20km","",208,208,"$208"," was given ","pocket money each week. ",52,null,null,"$",{"$f":"INT(5*RAND()+1)","v":4},1,null,null,"Each week "," received ",". ",null,"Find the total of ",null,null,"."]
[12,"12)",0,null,"Abbi posted her birthday party invitations on different days. ","Her mailing included 34, 34, 43, 32 and 35 invitations. ","Find the total number Abbi posted.","178 invitations",null,null,"Abbi played basketball for her local team. ","Her scores were 20, 2, 11 and 8 points. ","Find the average score Abbi achieved.","10 points",null,null,"Find a fifth of 20 boys",null,null,"4 boys",null,null,"Abbi worked five days each week. ","Each day she earned $199. ","Find the total of Abbi's earnings each year.","$51740",null,null,61,9,5,45,"Abbi","she"," posted"," her ","birthday party invitations on different days. ","Her ","mailing included ","34",", 34",", 43",", 32"," and 35"," invitations",""," invitations",". ","Find the total"," number ",""," posted",".",null,"Abbi posted her birthday party invitations on different days. ","Her mailing included 34, 34, 43, 32 and 35 invitations. ","Find the total number Abbi posted.","178 invitations",null,130,"130 cakes","Nino"," his ","His ","he"," purchased","cakes at a local shop. ",null,null,null,{"$f":"10*INT(3*RAND()+2)","v":30},30,40,40,20,20,30,20," cakes","purchases included ",". "," number ",null,null,null,null,null,17,1,2,2," played basketball for","local team. ","scores were ","20",", 2","",", 11"," and 8"," points"," jogged ",". ","Find the average"," score ","",""," achieved",".",null,"Abbi played basketball for her local team. ","Her scores were 20, 2, 11 and 8 points. ","Find the average score Abbi achieved.","10 points",". ",332,332,"332 centimetres"," participated in","age group in the long jump. ",null,null,null,{"$f":"INT(150*RAND()+300)","v":316},{"$f":"INT(150*RAND()+300)","v":306},{"$f":"INT(150*RAND()+300)","v":420},{"$f":"INT(150*RAND()+300)","v":332},298,288,{"$f":"IF(DU15<11,0,DU15-10)","v":410},1328,4,332,0,332," centimetres","distances were "," earned ",". "," result ",null,null,null,null,null,{"$f":"2*INT(10*RAND()+1)","v":4},4,13,5,20,"Find ","a fifth",""," boys",4,null,null,"three eights",8,3,null," people",null,24,4,3,18," worked ","five days each week. ","Each day "," earned ","$",199,"",". ","Find the total of ","","","'s earnings"," each year",".",null,"Abbi worked five days each week. ","Each day she earned $199. ","Find the total of Abbi's earnings each year.","$51740","",416,416,"$416"," worked for ","pocket money each week. ",52,null,null,"$",{"$f":"INT(5*RAND()+5)","v":8},1,null,null,"Each week "," earned ",". ",null,"Find the total of ",null,null,"."]
[13,"13)",0,null,"Jane rode her motorbike to different work sites. ","Her distances were 48, 45, 46 and 32 kilometres. ","Find the total distance Jane drove to work.","171 kilometres",null,null,"Jane earned her money delivering newspapers. ","Her payments were $29, $21, $24, $24 and $23. ","Find the average income Jane earned.","$23",null,null,"Find three fifths of 60mg",null,null,"36mg",null,null,"Jane paid 50c for the stamps on each letter. ","On each of 5 work days she posted 76 letters. ","Find the total cost of Jane's postage each week.","$190",null,null,65,8,2,37,"Jane","she"," rode"," her ","motorbike to different work sites. ","Her ","distances were ","48",", 45",", 46",""," and 32"," kilometres",""," kilometres",". ","Find the total"," distance ",""," drove to work",".",null,"Jane rode her motorbike to different work sites. ","Her distances were 48, 45, 46 and 32 kilometres. ","Find the total distance Jane drove to work.","171 kilometres",null,150,"150 buns","Ollie"," his ","His ","he"," purchased","sweet buns at a local shop. ",null,null,null,40,40,40,40,30,30,30,20," buns","purchases included ",". "," number ",null,null,null,null,null,25,7,4,34," earned","money delivering newspapers. ","payments were ","$29",", $21",", $24",", $24"," and $23","","'s flower grew ",". ","Find the average"," income ","",""," earned",".",null,"Jane earned her money delivering newspapers. ","Her payments were $29, $21, $24, $24 and $23. ","Find the average income Jane earned.","$23",". ",28,28,"28 metres"," participated in","age group in the javelin throwing. ",null,null,null,{"$f":"INT(50*RAND()+20)","v":69},{"$f":"INT(50*RAND()+20)","v":45},{"$f":"INT(50*RAND()+20)","v":25},{"$f":"INT(50*RAND()+20)","v":20},51,27,{"$f":"IF(DU16<11,0,DU16-10)","v":15},113,4,28,1,27," metres","distances were "," received ",". "," result ",null,null,null,null,null,4,10,8,1,60,"Find ","three fifths","","mg",36,null,null,"five eights",8,5,null," boys",null,16,9,3,43," paid 50c for the stamps ","on each letter. ","On each of 5 work days "," posted ","",76," letters",". ","Find the total cost of ","","","'s postage"," each week",".",null,"Jane paid 50c for the stamps on each letter. ","On each of 5 work days she posted 76 letters. ","Find the total cost of Jane's postage each week.","$190","",208,208,"$208"," was given ","pocket money each fortnight. ",26,null,null,"$",{"$f":"INT(10*RAND()+5)","v":8},1,null,null,"Each fortnight "," received ",". ",null,"Find the total of ",null,null,"."]
[14,"14)",0,null,"Boris held his breath while underwater. ","His times were 31, 39, 45, 35 and 30 seconds. ","Find the total time Boris stayed underwater.","180 seconds",null,null,"Boris participated in his age group in the javelin throwing. ","His distances were 69, 51, 27, 15 and 27 metres. ","Find the average result Boris recorded.","28 metres",null,null,"Find nine tenths of 540",null,null,"486",null,null,"Boris worked five days each week. ","Each day he earned $199. ","Find the total of Boris's earnings each year.","$51740",null,null,31,5,4,24,"Boris","he"," held"," his ","breath while underwater. ","His ","times were ","31",", 39",", 45",", 35"," and 30"," seconds",""," seconds",". ","Find the total"," time ",""," stayed underwater",".",null,"Boris held his breath while underwater. ","His times were 31, 39, 45, 35 and 30 seconds. ","Find the total time Boris stayed underwater.","180 seconds",null,120,"120 cans","Pedro"," his ","His ","he"," purchased","softdrink at a local shop. ",null,null,null,30,40,20,40,20,30,0,30," cans","purchases included ",". "," number ",null,null,null,null,null,37,3,3,13," participated in","age group in the javelin throwing. ","distances were ","69",", 51",", 27",", 15"," and 27"," metres"," received ",". ","Find the average"," result ","",""," recorded",".",null,"Boris participated in his age group in the javelin throwing. ","His distances were 69, 51, 27, 15 and 27 metres. ","Find the average result Boris recorded.","28 metres",". ",8,8,"8 metres"," participated in","age group in the shot-put throwing. ",null,null,null,{"$f":"INT(5*RAND()+10)","v":13},{"$f":"INT(5*RAND()+10)","v":12},{"$f":"INT(5*RAND()+10)","v":12},{"$f":"INT(5*RAND()+10)","v":14},0,0,{"$f":"IF(DU17<11,0,DU17-10)","v":2},16,2,8,0,8," metres","distances were "," earned ",". "," result ",null,null,null,null,null,6,17,1,4,540,"Find ","nine tenths","","",486,null,null,"seven eights",8,7,null," girls",null,36,4,3,18," worked ","five days each week. ","Each day "," earned ","$",199,"",". ","Find the total of ","","","'s earnings"," each year",".",null,"Boris worked five days each week. ","Each day he earned $199. ","Find the total of Boris's earnings each year.","$51740","",546,546,"$546"," worked for ","pocket money each fortnight. ",26,null,null,"$",{"$f":"INT(15*RAND()+10)","v":21},1,null,null,"Each fortnight "," earned ",". ",null,"Find the total of ",null,null,"."]
[15,"15)",0,null,"Gail purchased her lollies at a local shop. ","Her purchases included 30, 30, 30 and 30 lollies. ","Find the total number Gail purchased.","120 lollies",null,null,"Gail swam in her age group in the 50m butterfly. ","Her times were 44, 34, 36, 38 and 36 seconds. ","Find the average time Gail recorded.","36 seconds",null,null,"Find nine tenths of 360 years",null,null,"324 years",null,null,"Gail was given pocket money each week. ","Each week she received $17. ","Find the total of Gail's pocket money each year.","$884",null,null,47,3,1,11,"Gail","she"," purchased"," her ","lollies at a local shop. ","Her ","purchases included ","30",", 30",", 30",""," and 30"," lollies",""," lollies",". ","Find the total"," number ",""," purchased",".",null,"Gail purchased her lollies at a local shop. ","Her purchases included 30, 30, 30 and 30 lollies. ","Find the total number Gail purchased.","120 lollies",null,100,"100 bottles","Rod"," his ","His ","he"," purchased","softdrink at a local shop. ",null,null,null,20,30,30,20,0,20,20,40," bottles","purchases included ",". "," number ",null,null,null,null,null,16,4,5,20," swam in","age group in the 50m butterfly. ","times were ","44",", 34",", 36",", 38"," and 36"," seconds"," earned ",". ","Find the average"," time ","",""," recorded",".",null,"Gail swam in her age group in the 50m butterfly. ","Her times were 44, 34, 36, 38 and 36 seconds. ","Find the average time Gail recorded.","36 seconds",". ",17,17,"17 metres"," participated in","age group in the discus throwing. ",null,null,null,{"$f":"INT(20*RAND()+20)","v":28},{"$f":"INT(20*RAND()+20)","v":28},{"$f":"INT(20*RAND()+20)","v":29},{"$f":"INT(20*RAND()+20)","v":30},10,10,{"$f":"IF(DU18<11,0,DU18-10)","v":19},69,4,17,1,16," metres","distances were "," received ",". "," result ",null,null,null,null,null,4,17,20,5,360,"Find ","nine tenths",""," years",324,null,null,"three tenths",10,3,null," lollies",null,4,3,5,15," was given ","pocket money each week. ","Each week "," received ","$",17,"",". ","Find the total of ","","","'s pocket money"," each year",".",null,"Gail was given pocket money each week. ","Each week she received $17. ","Find the total of Gail's pocket money each year.","$884","",884,884,"$884"," was given ","pocket money each week. ",52,null,null,"$",{"$f":"INT(15*RAND()+5)","v":17},1,null,null,"Each week "," received ",". ",null,"Find the total of ",null,null,"."]
[16,"16)",0,null,"Paula did her science homework this week. ","Her homework took 39, 47 and 23 minutes. ","Find the total time Paula studied this week.","109 minutes",null,null,"Paula participated in her age group in the shot-put throwing. ","Her distances were 13, 2 and 8 metres. ","Find the average result Paula recorded.","8 metres",null,null,"Find nine tenths of 1260 boys",null,null,"1134 boys",null,null,"Paula rode a bike five days each week. ","Each day she rode 4 km . ","Find the total distance ridden by Paula each week.","20km",null,null,55,6,3,28,"Paula","she"," did"," her ","science homework this week. ","Her ","homework took ","39",", 47","",""," and 23"," minutes",""," minutes",". ","Find the total"," time ",""," studied this week",".",null,"Paula did her science homework this week. ","Her homework took 39, 47 and 23 minutes. ","Find the total time Paula studied this week.","109 minutes",null,140,"140 laps","Steve"," his ","His ","he"," trained at","local pool for the 50m freestyle. ",null,null,null,40,20,40,40,30,{"$f":"IF(BT19<30,0,BT19-10)","v":0},30,40," laps","daily training was ",". "," number ",null,null,null,null,null,2,3,4,14," participated in","age group in the shot-put throwing. ","distances were ","13","","",", 2"," and 8"," metres"," earned ",". ","Find the average"," result ","",""," recorded",".",null,"Paula participated in her age group in the shot-put throwing. ","Her distances were 13, 2 and 8 metres. ","Find the average result Paula recorded.","8 metres",". ",30,30,"30 seconds"," swam in","age group in the 50m freestyle. ",null,null,null,{"$f":"INT(20*RAND()+30)","v":36},{"$f":"INT(20*RAND()+30)","v":38},{"$f":"INT(20*RAND()+30)","v":43},{"$f":"INT(20*RAND()+30)","v":33},{"$f":"IF(DS19<35,0,DS19-10)","v":26},{"$f":"IF(DT19<35,0,DT19-10)","v":28},{"$f":"IF(DU19<35,0,DU19-10)","v":33},120,4,30,0,30," seconds","times were "," earned ",". "," time ",null,null,null,null,null,14,17,13,6,1260,"Find ","nine tenths",""," boys",1134,null,null,"seven tenths",10,7,null," apples",null,3,1,3,3," rode a bike ","five days each week. ","Each day "," rode ","",4," km ",". ","Find the total distance"," ridden ","by ",""," each week",".",null,"Paula rode a bike five days each week. ","Each day she rode 4 km . ","Find the total distance ridden by Paula each week.","20km","",6240,6240,"$6240"," worked ","twice a week. ",104,null,null,"$",{"$f":"INT(50*RAND()+50)","v":60},1,null,null,"Each day "," earned ",". ",null,"Find the total of ",null,null,"."]
[17,"17)",0,null,"Janet rode her bike to different work sites. ","Her distances were 33, 36, 47 and 35 kilometres. ","Find the total distance Janet drove to work.","151 kilometres",null,null,"Janet held her breath while underwater. ","Her times were 41, 34 and 44 seconds. ","Find the average time Janet stayed underwater.","44 seconds",null,null,"Find nine tenths of 1080 cents",null,null,"972 cents",null,null,"Janet drove to and from work 6 days each week. ","Each day  she drove 18km each way . ","Find the distance driven by Janet each week.","216km",null,null,66,8,4,39,"Janet","she"," rode"," her ","bike to different work sites. ","Her ","distances were ","33",", 36",", 47",""," and 35"," kilometres",""," kilometres",". ","Find the total"," distance ",""," drove to work",".",null,"Janet rode her bike to different work sites. ","Her distances were 33, 36, 47 and 35 kilometres. ","Find the total distance Janet drove to work.","151 kilometres",null,120,"120 laps","Trung"," his ","His ","he"," trained at","local pool for the 100m freestyle. ",null,null,null,30,20,30,40,20,0,20,40," laps","daily training was ",". "," number ",null,null,null,null,null,6,5,5,25," held","breath while underwater. ","times were ","41","","",", 34"," and 44"," seconds"," paid ",". ","Find the average"," time ","",""," stayed underwater",".",null,"Janet held her breath while underwater. ","Her times were 41, 34 and 44 seconds. ","Find the average time Janet stayed underwater.","44 seconds",". ",92,92,"92 seconds"," swam in","age group in the 100m freestyle. ",null,null,null,{"$f":"INT(40*RAND()+70)","v":87},{"$f":"INT(40*RAND()+70)","v":100},{"$f":"INT(40*RAND()+70)","v":81},{"$f":"INT(40*RAND()+70)","v":109},{"$f":"IF(DS20<85,0,DS20-10)","v":77},{"$f":"IF(DT20<85,0,DT20-10)","v":90},{"$f":"IF(DU20<85,0,DU20-10)","v":0},276,3,92,0,92," seconds","times were "," earned ",". "," time ",null,null,null,null,null,12,17,3,9,1080,"Find ","nine tenths",""," cents",972,null,null,"nine tenths",10,9,null," days",null,39,8,2,37," drove to and from work ","6 days each week. ","Each day  "," drove ","",18,"km each way ",". ","Find the distance"," driven ","by ",""," each week",".",null,"Janet drove to and from work 6 days each week. ","Each day  she drove 18km each way . ","Find the distance driven by Janet each week.","216km","",22880,22880,"$22880"," worked ","four days each week. ",208,null,null,"$",{"$f":"INT(50*RAND()+100)","v":110},1,null,null,"Each day "," earned ",". ",null,"Find the total of ",null,null,"."]
[18,"18)",0,null,"Jill posted her birthday party invitations on different days. ","Her mailing included 34, 34, 43, 32 and 35 invitations. ","Find the total number Jill posted.","178 invitations",null,null,"Jill participated in her age group in the javelin throwing. ","Her distances were 69, 51, 27, 15 and 27 metres. ","Find the average result Jill recorded.","28 metres",null,null,"Find an eight of 112 girls",null,null,"14 girls",null,null,"Jill paid 50c for the stamps on each letter. ","On each of 5 work days she posted 11 letters. ","Find the total cost of Jill's postage each week.","$27.50",null,null,64,9,5,45,"Jill","she"," posted"," her ","birthday party invitations on different days. ","Her ","mailing included ","34",", 34",", 43",", 32"," and 35"," invitations",""," invitations",". ","Find the total"," number ",""," posted",".",null,"Jill posted her birthday party invitations on different days. ","Her mailing included 34, 34, 43, 32 and 35 invitations. ","Find the total number Jill posted.","178 invitations",null,100,"100 laps","Sam"," his ","His ","he"," trained at","local pool for the 200m freestyle. ",null,null,null,20,30,30,40,0,20,20,20," laps","daily training was ",". "," number ",null,null,null,".",null,27,3,3,13," participated in","age group in the javelin throwing. ","distances were ","69",", 51",", 27",", 15"," and 27"," metres"," received ",". ","Find the average"," result ","",""," recorded",".",null,"Jill participated in her age group in the javelin throwing. ","Her distances were 69, 51, 27, 15 and 27 metres. ","Find the average result Jill recorded.","28 metres",". ",168,168,"168 seconds"," swam in","age group in the 200m freestyle. ",null,null,null,{"$f":"INT(40*RAND()+130)","v":159},{"$f":"INT(40*RAND()+160)","v":168},{"$f":"INT(40*RAND()+160)","v":199},{"$f":"INT(40*RAND()+160)","v":178},{"$f":"IF(DS21<155,0,DS21-10)","v":149},{"$f":"IF(DT21<155,0,DT21-10)","v":158},{"$f":"IF(DU21<155,0,DU21-10)","v":189},674,4,168,2,166," seconds","times were "," earned ",". "," time ",null,null,null,".",null,14,6,14,1,112,"Find ","an eight",""," girls",14,null,null,null,null,null,null," hours",null,25,9,5,45," paid 50c for the stamps ","on each letter. ","On each of 5 work days "," posted ","",11," letters",". ","Find the total cost of ","","","'s postage"," each week",".",null,"Jill paid 50c for the stamps on each letter. ","On each of 5 work days she posted 11 letters. ","Find the total cost of Jill's postage each week.","$27.50","",51740,51740,"$51740"," worked ","five days each week. ",260,null,null,"$",{"$f":"INT(50*RAND()+150)","v":199},1,null,null,"Each day "," earned ",". ",null,null,null,null,"."]
[19,"19)",0,null,"Terri played cricket for her local team. ","Her scores were 47, 12, 29 and 30 runs. ","Find the total score Terri achieved.","118 runs",null,null,"Terri rode her motorbike to different work sites. ","Her distances were 23, 21, 26 and 21 kilometres. ","Find the average distance Terri drove to work.","22 kilometres",null,null,"Find three tenths of 540 girls",null,null,"162 girls",null,null,"Terri was given pocket money each week. ","Each week she received $4. ","Find the total of Terri's pocket money each year.","$208",null,null,58,1,1,1,"Terri","she"," played cricket for"," her ","local team. ","Her ","scores were ","47",", 12",", 29",""," and 30"," runs",""," runs",". ","Find the total"," score ",""," achieved",".",null,"Terri played cricket for her local team. ","Her scores were 47, 12, 29 and 30 runs. ","Find the total score Terri achieved.","118 runs",null,100,"100 laps","Victor"," his ","His ","he"," trained at","local pool for the 50m backstroke. ",null,null,null,30,20,40,30,20,0,30,20," laps","daily training was ",". "," number ",null,null,null,".",null,38,8,2,37," rode","motorbike to different work sites. ","distances were ","23","",", 21",", 26"," and 21"," kilometres"," rode ",". ","Find the average"," distance ","",""," drove to work",".",null,"Terri rode her motorbike to different work sites. ","Her distances were 23, 21, 26 and 21 kilometres. ","Find the average distance Terri drove to work.","22 kilometres",". ",33,33,"33 seconds"," swam in","age group in the 50m backstroke. ",null,null,null,{"$f":"INT(15*RAND()+35)","v":42},41,41,38,{"$f":"IF(DS22<41,0,DS22-10)","v":32},31,31,132,4,33,0,33," seconds","times were "," earned ",". "," time ",null,null,null,".",null,18,15,14,2,540,"Find ","three tenths",""," girls",162,null,null,null,null,null,null," minutes",null,14,3,1,11," was given ","pocket money each week. ","Each week "," received ","$",4,"",". ","Find the total of ","","","'s pocket money"," each year",".",null,"Terri was given pocket money each week. ","Each week she received $4. ","Find the total of Terri's pocket money each year.","$208","",73320,73320,"$73320"," worked ","six days each week. ",312,null,null,"$",{"$f":"INT(50*RAND()+200)","v":235},1,null,null,"Each day "," earned ",". ",null,null,null,null,"."]
[20,"20)",0,null,"Harry played touch football for his school team. ","His scores were 5, 8 and 5 points. ","Find the total score Harry achieved.","18 points",null,null,"Harry earned his money working in a shop. ","His payments were $28, $20, $23 and $23. ","Find the average price Harry earned.","$23",null,null,{"$f":"CONCATENATE(ET23,EU23,\" of \",ES23,EW23)","v":"Find five eights of 800g"},null,null,{"$f":"CONCATENATE(EX23,EW23)","v":"500g"},null,null,"Harry paid the mortgage every 4 weeks. ","Each time he paid $420. ","Find the total of Harry's mortgage each year.","$5460",null,null,8,1,3,3,"Harry","he"," played touch football for"," his ","school team. ","His ","scores were ","5","",", 8",""," and 5"," points",""," points",". ","Find the total"," score ",""," achieved",".",null,"Harry played touch football for his school team. ","His scores were 5, 8 and 5 points. ","Find the total score Harry achieved.","18 points",null,140,"140 laps","Will"," his ","His ","he"," trained at","local pool for the 50m butterfly. ",null,null,null,30,40,40,30,20,30,30,30," laps","daily training was ",". "," number ",null,null,null,".",null,30,7,3,33," earned","money working in a shop. ","payments were ","$28",", $20",", $23",""," and $23","","'s shrub grew ",". ",{"$f":"OFFSET($EJ$4,(CK23-1),0)","v":"Find the average"},{"$f":"OFFSET($EI$4,(CK23-1),0)","v":" price "},{"$f":"IF(OFFSET($EK$4,(CM23-1),0)=\"\",\"\",OFFSET($EK$4,(CM23-1),0))","v":""},{"$f":"IF(OFFSET($EL$4,(CK23-1),0)=\"\",\"\",OFFSET($EL$4,(CK23-1),0))","v":""},{"$f":"OFFSET($DQ$4,(CK23-1),0)","v":" earned"},{"$f":"IF(OFFSET($EM$4,(CK23-1),0)=\"\",\"\",OFFSET($EM$4,(CK23-1),0))","v":"."},null,"Harry earned his money working in a shop. ","His payments were $28, $20, $23 and $23. ","Find the average price Harry earned.","$23",". ",36,36,"36 seconds"," swam in","age group in the 50m butterfly. ",null,null,null,44,46,48,36,34,36,38,144,4,36,0,36," seconds","times were "," earned ",". "," time ",null,null,null,".",null,20,13,7,2,800,"Find ","five eights","","g",500,null,null,null,null,null,null," years",null,22,6,5,30," paid the mortgage ","every 4 weeks. ","Each time "," paid ","$",420,"",". ","Find the total of ","","","'s mortgage"," each year",".",null,"Harry paid the mortgage every 4 weeks. ","Each time he paid $420. ","Find the total of Harry's mortgage each year.","$5460","",95732,95732,"$95732"," worked ","seven days each week. ",364,null,null,"$",{"$f":"INT(50*RAND()+250)","v":263},1,null,null,"Each day "," earned ",". ",null,null,null,null,"."]
[null,null,null,null,null,null,null,null,null,null,null,null,null,null,null,null,null,null,null,null,null,null,null,null,null,null,null,null,null,null,null,null,null,null,null,null,null,null,null,null,null,null,null,null,null,null,null,null,null,null,null,null,null,null,null,null,null,null,null,110,"110 seconds","Bob"," his ","His ","he"," held","breath while underwater. ",null,null,null,27,23,47,38,{"$f":"IF(BS24<30,0,BS24-2)","v":0},0,45,27," seconds","times were ",". "," time ",null,null,null,null,null,null,null,null,null,null,null,null,null,null,null,null,null,null,null,null,null,null,null,null,null,null,null,null,null,null,null,null,55,55,"55 seconds"," held","breath while underwater. ",null,null,null,{"$f":"INT(20*RAND()+40)","v":42},{"$f":"INT(20*RAND()+40)","v":40},{"$f":"INT(20*RAND()+40)","v":43},{"$f":"INT(20*RAND()+40)","v":54},{"$f":"IF(DS24<48,0,DS24-18)","v":0},0,0,54,1,54,0,56," seconds","times were "," paid ",". "," time ",null,null,null,null,null,null,null,null,null,null,null,null,null,null,null,null,null,null,null,null,null,null,null,null,null,null,null,null,null,null,null,null,null,null,null,null,null,null,null,null,null,null,null,null,null,null,null,13520,13520,"$13520"," paid rent ","each week. ",52,null,null,"$",{"$f":"10*INT(5*RAND()+25)","v":260},1,null,null,"Each week "," paid ",". "]
[null,null,null,null,null,null,null,null,null,null,null,null,null,null,null,null,null,null,null,null,null,null,null,null,null,null,null,null,null,null,null,null,null,null,null,null,null,null,null,null,null,null,null,null,null,null,null,null,null,null,null,null,null,null,null,null,null,null,null,158,"158 seconds","Tom"," his ","His ","he"," held","breath while underwater. ",null,null,null,38,37,36,25,36,35,34,28," seconds","times were ",". "," time ",null,null,null,null,null,null,null,null,null,null,null,null,null,null,null,null,null,null,null,null,null,null,null,null,null,null,null,null,null,null,null,null,43,43,"43 seconds"," held","breath while underwater. ",null,null,null,{"$f":"INT(20*RAND()+40)","v":56},54,44,55,38,36,0,129,3,43,0,43," seconds","times were "," paid ",". "," time ",null,null,null,null,null,null,null,null,null,null,null,null,null,null,null,null,null,null,null,null,null,null,null,null,null,null,null,null,null,null,null,null,null,null,null,null,null,null,null,null,null,null,null,null,null,null,null,14820,14820,"$14820"," paid rent ","each fortnight. ",26,null,null,"$",{"$f":"10*INT(10*RAND()+50)","v":570},1,null,null,"Each fortnight "," paid ",". "]
[null,null,null,null,null,null,null,null,null,null,null,null,null,null,null,null,null,null,null,null,null,null,null,null,null,null,null,null,null,null,null,null,null,null,null,null,null,null,null,null,null,null,null,null,null,null,null,null,null,null,null,null,null,null,null,null,null,null,null,98,"98 seconds","John"," his ","His ","he"," held","breath while underwater. ",null,null,null,21,23,42,22,0,0,40,36," seconds","times were ",". "," time ",null,null,null,null,null,null,null,null,null,null,null,null,null,null,null,null,null,null,null,null,null,null,null,null,null,null,null,null,null,null,null,null,34,34,"34 seconds"," held","breath while underwater. ",null,null,null,46,49,49,40,0,31,31,102,3,34,0,34," seconds","times were "," paid ",". "," time ",null,null,null,null,null,null,null,null,null,null,null,null,null,null,null,null,null,null,null,null,null,null,null,null,null,null,null,null,null,null,null,null,null,null,null,null,null,null,null,null,null,null,null,null,null,null,null,12000,12000,"$12000"," paid rent ","each month. ",12,null,null,"$",{"$f":"10*INT(20*RAND()+100)","v":1000},1,null,null,"Each month "," paid ",". "]
[null,null,null,null,null,null,null,null,null,null,null,null,null,null,null,null,null,null,null,null,null,null,null,null,null,null,null,null,null,null,null,null,null,null,null,null,null,null,null,null,null,null,null,null,null,null,null,null,null,null,null,null,null,null,null,null,null,null,null,180,"180 seconds","Phil"," his ","His ","he"," held","breath while underwater. ",null,null,null,41,47,37,31,39,45,35,30," seconds","times were ",". "," time ",null,null,null,null,null,null,null,null,null,null,null,null,null,null,null,null,null,null,null,null,null,null,null,null,null,null,null,null,null,null,null,null,39,39,"39 seconds"," held","breath while underwater. ",null,null,null,57,46,44,40,39,0,0,79,2,39,1,38," seconds","times were "," paid ",". "," time ",null,null,null,null,null,null,null,null,null,null,null,null,null,null,null,null,null,null,null,null,null,null,null,null,null,null,null,null,null,null,null,null,null,null,null,null,null,null,null,null,null,null,null,null,null,null,null,10400,10400,"$10400"," paid rent ","each pay day. ",52,null,null,"$",{"$f":"10*INT(5*RAND()+20)","v":200},1,null,null,"Each week "," paid ",". "]
[null,null,null,null,null,null,null,null,null,null,null,null,null,null,null,null,null,null,null,null,null,null,null,null,null,null,null,null,null,null,null,null,null,null,null,null,null,null,null,null,null,null,null,null,null,null,null,null,null,null,null,null,null,null,null,null,null,null,null,194,"194 seconds","Jan"," his ","His ","he"," held","breath while underwater. ",null,null,null,42,48,41,27,40,46,39,42," seconds","times were ",". "," time ",null,null,null,null,null,null,null,null,null,null,null,null,null,null,null,null,null,null,null,null,null,null,null,null,null,null,null,null,null,null,null,null,44,44,"44 seconds"," held","breath while underwater. ",null,null,null,41,44,52,54,0,0,34,88,2,44,0,44," seconds","times were "," paid ",". "," time ",null,null,null,null,null,null,null,null,null,null,null,null,null,null,null,null,null,null,null,null,null,null,null,null,null,null,null,null,null,null,null,null,null,null,null,null,null,null,null,null,null,null,null,null,null,null,null,10400,10400,"$10400"," paid rent ","every 4 weeks. ",13,null,null,"$",{"$f":"10*INT(4*RAND()+80)","v":800},1,null,null,"Each time "," paid ",". "]
[null,null,null,null,null,null,null,null,null,null,null,null,null,null,null,null,null,null,null,null,null,null,null,null,null,null,null,null,null,null,null,null,null,null,null,null,null,null,null,null,null,null,null,null,null,null,null,null,null,null,null,null,null,null,null,null,null,null,null,163,"163 minutes","Sean"," his ","His ","he"," did","maths homework this week. ",null,null,null,40,34,25,44,38,32,0,49," minutes","homework took ",". "," time ",null,null,null,null,null,null,null,null,null,null,null,null,null,null,null,null,null,null,null,null,null,null,null,null,null,null,null,null,null,null,null,null,40,40,"40 minutes"," did","maths homework this week. ",null,null,null,59,57,47,42,41,39,0,122,3,40,2,38," minutes","homework took "," paid ",". "," time ",null,null,null,null,null,null,null,null,null,null,null,null,null,null,null,null,null,null,null,null,null,null,null,null,null,null,null,null,null,null,null,null,null,null,null,null,null,null,null,null,null,null,null,null,null,null,null,17160,17160,"$17160"," paid the mortgage ","each week. ",52,null,null,"$",{"$f":"10*INT(6*RAND()+30)","v":330},1,null,null,"Each week "," paid ",". "]
[null,null,null,null,null,null,null,null,null,null,null,null,null,null,null,null,null,null,null,null,null,null,null,null,null,null,null,null,null,null,null,null,null,null,null,null,null,null,null,null,null,null,null,null,null,null,null,null,null,null,null,null,null,null,null,null,null,null,null,137,"137 minutes","Stan"," his ","His ","he"," did","English homework this week. ",null,null,null,29,33,47,29,0,31,45,32," minutes","homework took ",". "," time ",null,null,null,null,null,null,null,null,null,null,null,null,null,null,null,null,null,null,null,null,null,null,null,null,null,null,null,null,null,null,null,null,40,40,"40 minutes"," did","English homework this week. ",null,null,null,55,46,43,44,37,0,0,81,2,40,1,39," minutes","homework took "," paid ",". "," time ",null,null,null,null,null,null,null,null,null,null,null,null,null,null,null,null,null,null,null,null,null,null,null,null,null,null,null,null,null,null,null,null,null,null,null,null,null,null,null,null,null,null,null,null,null,null,null,16120,16120,"$16120"," paid the mortgage ","each fortnight. ",26,null,null,"$",{"$f":"10*INT(7*RAND()+60)","v":620},1,null,null,"Each fortnight "," paid ",". "]
[null,null,null,null,null,null,null,null,null,null,null,null,null,null,null,null,null,null,null,null,null,null,null,null,null,null,null,null,null,null,null,null,null,null,null,null,null,null,null,null,null,null,null,null,null,null,null,null,null,null,null,null,null,null,null,null,null,null,null,109,"109 minutes","Jack"," his ","His ","he"," did","science homework this week. ",null,null,null,49,24,27,39,47,0,0,23," minutes","homework took ",". "," time ",null,null,null,null,null,null,null,null,null,null,null,null,null,null,null,null,null,null,null,null,null,null,null,null,null,null,null,null,null,null,null,null,42,42,"42 minutes"," did","science homework this week. ",null,null,null,49,56,41,57,31,38,0,126,3,42,0,42," minutes","homework took "," paid ",". "," time ",null,null,null,null,null,null,null,null,null,null,null,null,null,null,null,null,null,null,null,null,null,null,null,null,null,null,null,null,null,null,null,null,null,null,null,null,null,null,null,null,null,null,null,null,null,null,null,13320,13320,"$13320"," paid the mortgage ","each month. ",12,null,null,"$",{"$f":"10*INT(5*RAND()+110)","v":1110},1,null,null,"Each month "," paid ",". "]
[null,null,null,null,null,null,null,null,null,null,null,null,null,null,null,null,null,null,null,null,null,null,null,null,null,null,null,null,null,null,null,null,null,null,null,null,null,null,null,null,null,null,null,null,null,null,null,null,null,null,null,null,null,null,null,null,null,null,null,90,"90 minutes","Don"," his ","His ","he"," did","history homework this week. ",null,null,null,37,21,21,25,35,0,0,30," minutes","homework took ",". "," time ",null,null,null,null,null,null,null,null,null,null,null,null,null,null,null,null,null,null,null,null,null,null,null,null,null,null,null,null,null,null,null,null,39,39,"39 minutes"," did","history homework this week. ",null,null,null,57,40,49,49,39,0,31,119,3,39,2,37," minutes","homework took "," paid ",". "," time ",null,null,null,null,null,null,null,null,null,null,null,null,null,null,null,null,null,null,null,null,null,null,null,null,null,null,null,null,null,null,null,null,null,null,null,null,null,null,null,null,null,null,null,null,null,null,null,24960,24960,"$24960"," paid the mortgage ","each pay day. ",52,null,null,"$",{"$f":"10*INT(5*RAND()+45)","v":480},1,null,null,"Each week "," paid ",". "]
[null,null,null,null,null,null,null,null,null,null,null,null,null,null,null,null,null,null,null,null,null,null,null,null,null,null,null,null,null,null,null,null,null,null,null,null,null,null,null,null,null,null,null,null,null,null,null,null,null,null,null,null,null,null,null,null,null,null,null,110,"110 minutes","Ivan"," his ","His ","he"," did","art homework this week. ",null,null,null,26,40,29,35,0,38,0,37," minutes","homework took ",". "," time ",null,null,null,null,null,null,null,null,null,null,null,null,null,null,null,null,null,null,null,null,null,null,null,null,null,null,null,null,null,null,null,null,37,37,"37 minutes"," did","art homework this week. ",null,null,null,50,52,52,51,32,34,34,151,4,37,3,34," minutes","homework took "," paid ",". "," time ",null,null,null,null,null,null,null,null,null,null,null,null,null,null,null,null,null,null,null,null,null,null,null,null,null,null,null,null,null,null,null,null,null,null,null,null,null,null,null,null,null,null,null,null,null,null,null,5460,5460,"$5460"," paid the mortgage ","every 4 weeks. ",13,null,null,"$",{"$f":"10*INT(5*RAND()+40)","v":420},1,null,null,"Each time "," paid ",". "]
[null,null,null,null,null,null,null,null,null,null,null,null,null,null,null,null,null,null,null,null,null,null,null,null,null,null,null,null,null,null,null,null,null,null,null,null,null,null,null,null,null,null,null,null,null,null,null,null,null,null,null,null,null,null,null,null,null,null,null,99,"$99","Boris"," his ","His ","he"," earned","money mowing lawns. ",null,null,"$",27,47,27,34,0,45,0,20,null,"payments were ",". "," income ",null,null,null,null,null,null,null,null,null,null,null,null,null,null,null,null,null,null,null,null,null,null,null,null,null,null,null,null,null,null,null,null,30,30,"$30"," earned","money mowing lawns. ",null,null,"$",{"$f":"INT(20*RAND()+20)","v":37},{"$f":"INT(20*RAND()+20)","v":26},{"$f":"INT(20*RAND()+20)","v":36},{"$f":"INT(20*RAND()+20)","v":34},{"$f":"IF(DS34<28,0,DS34-8)","v":29},{"$f":"IF(DT34<28,0,DT34-8)","v":0},28,91,3,30,1,29,null,"payments were ",{"$f":"\"'s plant grew \"","v":"'s plant grew "},". "," income ",null,null,null,null,null,null,null,null,null,null,null,null,null,null,null,null,null,null,null,null,null,null,null,null,null,null,null,null,null,null,null,null,null,null,null,null,null,null,null,null,null,null,null,null,null,null,null,62,62,"62cm",{"$f":"\"'s plant was planted \"","v":"'s plant was planted "},"when it was 10cm tall. ",52,10,null,null,{"$f":"INT(5*RAND()+1)","v":1},1,"cm","cm","Each week ",{"$f":"\"'s plant grew \"","v":"'s plant grew "},". "]
[null,null,null,null,null,null,null,null,null,null,null,null,null,null,null,null,null,null,null,null,null,null,null,null,null,null,null,null,null,null,null,null,null,null,null,null,null,null,null,null,null,null,null,null,null,null,null,null,null,null,null,null,null,null,null,null,null,null,null,159,"$159","Jim"," his ","His ","he"," earned","money baby sitting. ",null,null,"$",35,30,41,31,33,28,39,28,null,"payments were ",". "," income ",null,null,null,null,null,null,null,null,null,null,null,null,null,null,null,null,null,null,null,null,null,null,null,null,null,null,null,null,null,null,null,null,33,33,"$33"," earned","money baby sitting. ",null,null,"$",{"$f":"INT(20*RAND()+20)","v":20},27,24,32,{"$f":"IF(DS35<28,0,DS35-8)","v":0},0,0,32,1,32,0,34,null,"payments were ",{"$f":"\"'s tree grew \"","v":"'s tree grew "},". "," income ",null,null,null,null,null,null,null,null,null,null,null,null,null,null,null,null,null,null,null,null,null,null,null,null,null,null,null,null,null,null,null,null,null,null,null,null,null,null,null,null,null,null,null,null,null,null,null,324,324,"324cm",{"$f":"\"'s tree was planted \"","v":"'s tree was planted "},"when it was 90cm tall. ",26,90,null,null,{"$f":"INT(5*RAND()+5)","v":9},1,"cm","cm","Each fortnight ",{"$f":"\"'s tree grew \"","v":"'s tree grew "},". "]
[null,null,null,null,null,null,null,null,null,null,null,null,null,null,null,null,null,null,null,null,null,null,null,null,null,null,null,null,null,null,null,null,null,null,null,null,null,null,null,null,null,null,null,null,null,null,null,null,null,null,null,null,null,null,null,null,null,null,null,197,"$197","Hugo"," his ","His ","he"," earned","money working in a shop. ",null,null,"$",43,37,33,44,41,35,31,46,null,"payments were ",". "," income ",null,null,null,null,null,null,null,null,null,null,null,null,null,null,null,null,null,null,null,null,null,null,null,null,null,null,null,null,null,null,null,null,23,23,"$23"," earned","money working in a shop. ",null,null,"$",28,31,27,26,{"$f":"IF(DS36<28,0,DS36-8)","v":20},23,0,69,3,23,0,23,null,"payments were ",{"$f":"\"'s shrub grew \"","v":"'s shrub grew "},". "," income ",null,null,null,null,null,null,null,null,null,null,null,null,null,null,null,null,null,null,null,null,null,null,null,null,null,null,null,null,null,null,null,null,null,null,null,null,null,null,null,null,null,null,null,null,null,null,null,158,158,"158cm",{"$f":"\"'s shrub was planted \"","v":"'s shrub was planted "},"when it was 50cm tall. ",12,50,null,null,{"$f":"INT(50*RAND()+5)","v":9},1,"cm","cm","Each month ",{"$f":"\"'s shrub grew \"","v":"'s shrub grew "},". "]
[null,null,null,null,null,null,null,null,null,null,null,null,null,null,null,null,null,null,null,null,null,null,null,null,null,null,null,null,null,null,null,null,null,null,null,null,null,null,null,null,null,null,null,null,null,null,null,null,null,null,null,null,null,null,null,null,null,null,null,185,"$185","Pat"," his ","His ","he"," earned","money delivering newspapers. ",null,null,"$",41,39,40,49,39,37,38,22,null,"payments were ",". "," income ",null,null,null,null,null,null,null,null,null,null,null,null,null,null,null,null,null,null,null,null,null,null,null,null,null,null,null,null,null,null,null,null,23,23,"$23"," earned","money delivering newspapers. ",null,null,"$",29,32,32,23,{"$f":"IF(DS37<28,0,DS37-8)","v":21},24,24,92,4,23,0,23,null,"payments were ",{"$f":"\"'s flower grew \"","v":"'s flower grew "},". "," income ",null,null,null,null,null,null,null,null,null,null,null,null,null,null,null,null,null,null,null,null,null,null,null,null,null,null,null,null,null,null,null,null,null,null,null,null,null,null,null,null,null,null,null,null,null,null,null,176,176,"176cm",{"$f":"\"'s flowering plant was planted \"","v":"'s flowering plant was planted "},"when it was 20cm tall. ",52,20,null,null,{"$f":"INT(5*RAND()+1)","v":3},1,"cm","cm","Each week ",{"$f":"\"'s flower grew \"","v":"'s flower grew "},". "]
[null,null,null,null,null,null,null,null,null,null,null,null,null,null,null,null,null,null,null,null,null,null,null,null,null,null,null,null,null,null,null,null,null,null,null,null,null,null,null,null,null,null,null,null,null,null,null,null,null,null,null,null,null,null,null,null,null,null,null,121,"$121","Paula"," his ","His ","he"," earned","money doing gardening. ",null,null,"$",43,23,20,37,41,0,0,43,null,"payments were ",". "," income ",null,null,null,null,null,null,null,null,null,null,null,null,null,null,null,null,null,null,null,null,null,null,null,null,null,null,null,null,null,null,null,null,25,25,"$25"," earned","money doing gardening. ",null,null,"$",22,33,26,26,{"$f":"IF(DS38<28,0,DS38-8)","v":0},25,0,51,2,25,1,24,null,"payments were ",{"$f":"\"'s apple tree grew \"","v":"'s apple tree grew "},". "," income ",null,null,null,null,null,null,null,null,null,null,null,null,null,null,null,null,null,null,null,null,null,null,null,null,null,null,null,null,null,null,null,null,null,null,null,null,null,null,null,null,null,null,null,null,null,null,null,606,606,"606cm",{"$f":"\"'s apple tree was planted \"","v":"'s apple tree was planted "},"when it was 30cm tall. ",12,30,null,null,{"$f":"INT(25*RAND()+25)","v":48},1,"cm","cm","Each month  ",{"$f":"\"'s apple tree grew \"","v":"'s apple tree grew "},". "]
[null,null,null,null,null,null,null,null,null,null,null,null,null,null,null,null,null,null,null,null,null,null,null,null,null,null,null,null,null,null,null,null,null,null,null,null,null,null,null,null,null,null,null,null,null,null,null,null,null,null,null,null,null,null,null,null,null,null,null,166,"166 kilometres","Alexi"," his ","His ","he"," drove","car to different work sites. ",null,null,null,27,46,48,31,0,44,46,45," kilometres","distances were ",". "," distance ",null,null,null,null,null,null,null,null,null,null,null,null,null,null,null,null,null,null,null,null,null,null,null,null,null,null,null,null,null,null,null,null,30,30,"30 kilometres"," drove","car to different work sites. ",null,null,null,38,33,36,38,{"$f":"IF(DS39<28,0,DS39-8)","v":30},25,28,121,4,30,1,29," kilometres","distances were "," drove ",". "," distance ",null,null,null,null,null,null,null,null,null,null,null,null,null,null,null,null,null,null,null,null,null,null,null,null,null,null,null,null,null,null,null,null,null,null,null,null,null,null,null,null,null,null,null,null,null,null,null,70,70,"70km"," drove to and from work ","5 days each week. ",5,null,null,null,{"$f":"INT(5*RAND()+5)","v":7},2,"km each way ","km","Each day  "," drove ",". "," driven "]
[null,null,null,null,null,null,null,null,null,null,null,null,null,null,null,null,null,null,null,null,null,null,null,null,null,null,null,null,null,null,null,null,null,null,null,null,null,null,null,null,null,null,null,null,null,null,null,null,null,null,null,null,null,null,null,null,null,null,null,171,"171 kilometres","Ben"," his ","His ","he"," rode","motorbike to different work sites. ",null,null,null,47,48,29,48,45,46,0,32," kilometres","distances were ",". "," distance ",null,null,null,null,null,null,null,null,null,null,null,null,null,null,null,null,null,null,null,null,null,null,null,null,null,null,null,null,null,null,null,null,22,22,"22 kilometres"," rode","motorbike to different work sites. ",null,null,null,23,29,34,20,0,21,26,67,3,22,1,21," kilometres","distances were "," rode ",". "," distance ",null,null,null,null,null,null,null,null,null,null,null,null,null,null,null,null,null,null,null,null,null,null,null,null,null,null,null,null,null,null,null,null,null,null,null,null,null,null,null,null,null,null,null,null,null,null,null,216,216,"216km"," drove to and from work ","6 days each week. ",6,null,null,null,{"$f":"INT(10*RAND()+10)","v":18},2,"km each way ","km","Each day  "," drove ",". "," driven "]
[null,null,null,null,null,null,null,null,null,null,null,null,null,null,null,null,null,null,null,null,null,null,null,null,null,null,null,null,null,null,null,null,null,null,null,null,null,null,null,null,null,null,null,null,null,null,null,null,null,null,null,null,null,null,null,null,null,null,null,190,"190 kilometres","Athol"," his ","His ","he"," drove","ute to different work sites. ",null,null,null,45,48,32,46,43,46,30,25," kilometres","distances were ",". "," distance ",null,null,null,null,null,null,null,null,null,null,null,null,null,null,null,null,null,null,null,null,null,null,null,null,null,null,null,null,null,null,null,null,24,24,"24 kilometres"," drove","ute to different work sites. ",null,null,null,29,32,21,29,21,24,0,74,3,24,2,22," kilometres","distances were "," drove ",". "," distance ",null,null,null,null,null,null,null,null,null,null,null,null,null,null,null,null,null,null,null,null,null,null,null,null,null,null,null,null,null,null,null,null,null,null,null,null,null,null,null,null,null,null,null,null,null,null,null,40,40,"40km"," drove to and from work ","4 days each week. ",4,null,null,null,{"$f":"INT(20*RAND()+5)","v":5},2,"km each way ","km","Each day  "," drove ",". "," driven "]
[null,null,null,null,null,null,null,null,null,null,null,null,null,null,null,null,null,null,null,null,null,null,null,null,null,null,null,null,null,null,null,null,null,null,null,null,null,null,null,null,null,null,null,null,null,null,null,null,null,null,null,null,null,null,null,null,null,null,null,151,"151 kilometres","Fred"," his ","His ","he"," rode","bike to different work sites. ",null,null,null,38,49,21,33,36,47,0,35," kilometres","distances were ",". "," distance ",null,null,null,null,null,null,null,null,null,null,null,null,null,null,null,null,null,null,null,null,null,null,null,null,null,null,null,null,null,null,null,null,8,8,"8 kilometres"," rode","bike to different work sites. ",null,null,null,{"$f":"INT(10*RAND()+10)","v":16},{"$f":"INT(10*RAND()+10)","v":16},{"$f":"INT(10*RAND()+10)","v":14},{"$f":"INT(10*RAND()+10)","v":13},{"$f":"IF(DS42<12,0,DS42-8)","v":8},{"$f":"IF(DT42<12,0,DT42-8)","v":8},{"$f":"IF(DU42<12,0,DU42-8)","v":6},35,4,8,3,5," kilometres","distances were "," rode ",". "," distance ",null,null,null,null,null,null,null,null,null,null,null,null,null,null,null,null,null,null,null,null,null,null,null,null,null,null,null,null,null,null,null,null,null,null,null,null,null,null,null,null,null,null,null,null,null,null,null,238,238,"238km"," drove to and from work ","7 days each week. ",7,null,null,null,{"$f":"INT(10*RAND()+15)","v":17},2,"km each way ","km","Each day  "," drove ",". "," driven "]
[null,null,null,null,null,null,null,null,null,null,null,null,null,null,null,null,null,null,null,null,null,null,null,null,null,null,null,null,null,null,null,null,null,null,null,null,null,null,null,null,null,null,null,null,null,null,null,null,null,null,null,null,null,null,null,null,null,null,null,103,"103 kilometres","Liam"," his ","His ","he"," drove","van to different work sites. ",null,null,null,27,28,32,35,0,0,30,38," kilometres","distances were ",". "," distance ",null,null,null,null,null,null,null,null,null,null,null,null,null,null,null,null,null,null,null,null,null,null,null,null,null,null,null,null,null,null,null,null,24,24,"24 kilometres"," drove","van to different work sites. ",null,null,null,24,37,31,22,0,29,23,74,3,24,2,22," kilometres","distances were "," drove ",". "," distance ",null,null,null,null,null,null,null,null,null,null,null,null,null,null,null,null,null,null,null,null,null,null,null,null,null,null,null,null,null,null,null,null,null,null,null,null,null,null,null,null,null,null,null,null,null,null,null,198,198,"198km"," drove to and from work ","3 days each week. ",3,null,null,null,{"$f":"INT(15*RAND()+20)","v":33},2,"km each way ","km","Each day  "," drove ",". "," driven "]
[null,null,null,null,null,null,null,null,null,null,null,null,null,null,null,null,null,null,null,null,null,null,null,null,null,null,null,null,null,null,null,null,null,null,null,null,null,null,null,null,null,null,null,null,null,null,null,null,null,null,null,null,null,null,null,null,null,null,null,154,"154 letters","Allison"," her ","Her ","she"," posted","work's mail. ",null,null,null,45,21,47,36,43,0,45,30," letters","mailing included ",". "," number ",null,null,null,null,null,null,null,null,null,null,null,null,null,null,null,null,null,null,null,null,null,null,null,null,null,null,null,null,null,null,null,null,24,24,"24 letters"," posted","work's mail. ",null,null,null,28,30,22,30,20,22,0,72,3,24,0,24," letters","mailing included "," posted ",". "," number ",null,null,null,null,null,null,null,null,null,null,null,null,null,null,null,null,null,null,null,null,null,null,null,null,null,null,null,null,null,null,null,null,null,null,null,null,null,null,null,null,null,null,null,null,null,null,null,4000,{"$f":"IF(INT(GE44/100)=GE44/100,CONCATENATE(\"$\",GE44/100),CONCATENATE(\"$\",GE44/100,0))","v":"$40"},"$40"," paid 50c for the stamps ","on each letter. ",5,null,null,null,{"$f":"INT(15*RAND()+2)","v":16},50," letters",null,"On each of 5 work days "," posted ",". "]
[null,null,null,null,null,null,null,null,null,null,null,null,null,null,null,null,null,null,null,null,null,null,null,null,null,null,null,null,null,null,null,null,null,null,null,null,null,null,null,null,null,null,null,null,null,null,null,null,null,null,null,null,null,null,null,null,null,null,null,98,"98 cards","Betty"," her ","Her ","she"," posted","Christmas cards on different days. ",null,null,null,25,20,31,34,0,0,29,35," cards","mailing included ",". "," number ",null,null,null,null,null,null,null,null,null,null,null,null,null,null,null,null,null,null,null,null,null,null,null,null,null,null,null,null,null,null,null,null,24,24,"24 cards"," posted","Christmas cards on different days. ",null,null,null,29,28,31,33,21,20,23,97,4,24,1,23," cards","mailing included "," posted ",". "," number ",null,null,null,null,null,null,null,null,null,null,null,null,null,null,null,null,null,null,null,null,null,null,null,null,null,null,null,null,null,null,null,null,null,null,null,null,null,null,null,null,null,null,null,null,null,null,null,1500,{"$f":"IF(INT(GE45/100)=GE45/100,CONCATENATE(\"$\",GE45/100),CONCATENATE(\"$\",GE45/100,0))","v":"$15"},"$15"," paid 50c for the stamps ","on each letter. ",5,null,null,null,{"$f":"INT(10*RAND()+5)","v":6},50," letters",null,"On each of 5 work days "," posted ",". "]
[null,null,null,null,null,null,null,null,null,null,null,null,null,null,null,null,null,null,null,null,null,null,null,null,null,null,null,null,null,null,null,null,null,null,null,null,null,null,null,null,null,null,null,null,null,null,null,null,null,null,null,null,null,null,null,null,null,null,null,122,"122 invitations","Carla"," her ","Her ","she"," posted","engagement party invitations on different days. ",null,null,null,28,47,22,35,0,45,0,42," invitations","mailing included ",". "," number ",null,null,null,null,null,null,null,null,null,null,null,null,null,null,null,null,null,null,null,null,null,null,null,null,null,null,null,null,null,null,null,null,25,25,"25 invitations"," posted","engagement party invitations on different days. ",null,null,null,35,29,36,25,27,21,28,101,4,25,1,24," invitations","mailing included "," posted ",". "," number ",null,null,null,null,null,null,null,null,null,null,null,null,null,null,null,null,null,null,null,null,null,null,null,null,null,null,null,null,null,null,null,null,null,null,null,null,null,null,null,null,null,null,null,null,null,null,null,19000,{"$f":"IF(INT(GE46/100)=GE46/100,CONCATENATE(\"$\",GE46/100),CONCATENATE(\"$\",GE46/100,0))","v":"$190"},"$190"," paid 50c for the stamps ","on each letter. ",5,null,null,null,{"$f":"INT(75*RAND()+25)","v":76},50," letters",null,"On each of 5 work days "," posted ",". "]
[null,null,null,null,null,null,null,null,null,null,null,null,null,null,null,null,null,null,null,null,null,null,null,null,null,null,null,null,null,null,null,null,null,null,null,null,null,null,null,null,null,null,null,null,null,null,null,null,null,null,null,null,null,null,null,null,null,null,null,130,"130 invitations","Deb"," her ","Her ","she"," posted","wedding invitations on different days. ",null,null,null,22,33,40,38,0,31,38,23," invitations","mailing included ",". "," number ",null,null,null,null,null,null,null,null,null,null,null,null,null,null,null,null,null,null,null,null,null,null,null,null,null,null,null,null,null,null,null,null,25,25,"25 invitations"," posted","wedding invitations on different days. ",null,null,null,38,26,31,22,30,0,23,75,3,25,0,25," invitations","mailing included "," posted ",". "," number ",null,null,null,null,null,null,null,null,null,null,null,null,null,null,null,null,null,null,null,null,null,null,null,null,null,null,null,null,null,null,null,null,null,null,null,null,null,null,null,null,null,null,null,null,null,null,null,9000,{"$f":"IF(INT(GE47/100)=GE47/100,CONCATENATE(\"$\",GE47/100),CONCATENATE(\"$\",GE47/100,0))","v":"$90"},"$90"," paid 50c for the stamps ","on each letter. ",5,null,null,null,{"$f":"INT(25*RAND()+25)","v":36},50," letters",null,"On each of 5 work days "," posted ",". "]
[null,null,null,null,null,null,null,null,null,null,null,null,null,null,null,null,null,null,null,null,null,null,null,null,null,null,null,null,null,null,null,null,null,null,null,null,null,null,null,null,null,null,null,null,null,null,null,null,null,null,null,null,null,null,null,null,null,null,null,178,"178 invitations","Eliza"," her ","Her ","she"," posted","birthday party invitations on different days. ",null,null,null,36,45,34,34,34,43,32,35," invitations","mailing included ",". "," number ",null,null,null,null,null,null,null,null,null,null,null,null,null,null,null,null,null,null,null,null,null,null,null,null,null,null,null,null,null,null,null,null,27,27,"27 invitations"," posted","birthday party invitations on different days. ",null,null,null,33,35,37,30,25,27,29,111,4,27,3,24," invitations","mailing included "," posted ",". "," number ",null,null,null,null,null,null,null,null,null,null,null,null,null,null,null,null,null,null,null,null,null,null,null,null,null,null,null,null,null,null,null,null,null,null,null,null,null,null,null,null,null,null,null,null,null,null,null,2750,{"$f":"IF(INT(GE48/100)=GE48/100,CONCATENATE(\"$\",GE48/100),CONCATENATE(\"$\",GE48/100,0))","v":"$27.50"},"$27.50"," paid 50c for the stamps ","on each letter. ",5,null,null,null,{"$f":"INT(10*RAND()+5)","v":11},50," letters",null,"On each of 5 work days "," posted ",". "]
[null,null,null,null,null,null,null,null,null,null,null,null,null,null,null,null,null,null,null,null,null,null,null,null,null,null,null,null,null,null,null,null,null,null,null,null,null,null,null,null,null,null,null,null,null,null,null,null,null,null,null,null,null,null,null,null,null,null,null,null,null,"Frieda"," her ","Her ","she"]
[null,null,null,null,null,null,null,null,null,null,null,null,null,null,null,null,null,null,null,null,null,null,null,null,null,null,null,null,null,null,null,null,null,null,null,null,null,null,null,null,null,null,null,null,null,null,null,null,null,null,null,null,null,null,null,null,null,null,null,null,null,"Gail"," her ","Her ","she"]
[null,null,null,null,null,null,null,null,null,null,null,null,null,null,null,null,null,null,null,null,null,null,null,null,null,null,null,null,null,null,null,null,null,null,null,null,null,null,null,null,null,null,null,null,null,null,null,null,null,null,null,null,null,null,null,null,null,null,null,null,null,"Helen"," her ","Her ","she"]
[null,null,null,null,null,null,null,null,null,null,null,null,null,null,null,null,null,null,null,null,null,null,null,null,null,null,null,null,null,null,null,null,null,null,null,null,null,null,null,null,null,null,null,null,null,null,null,null,null,null,null,null,null,null,null,null,null,null,null,null,null,"Isobel"," her ","Her ","she"]
[null,null,null,null,null,null,null,null,null,null,null,null,null,null,null,null,null,null,null,null,null,null,null,null,null,null,null,null,null,null,null,null,null,null,null,null,null,null,null,null,null,null,null,null,null,null,null,null,null,null,null,null,null,null,null,null,null,null,null,null,null,"Judy"," her ","Her ","she"]
[null,null,null,null,null,null,null,null,null,null,null,null,null,null,null,null,null,null,null,null,null,null,null,null,null,null,null,null,null,null,null,null,null,null,null,null,null,null,null,null,null,null,null,null,null,null,null,null,null,null,null,null,null,null,null,null,null,null,null,null,null,"Kim"," her ","Her ","she"]
[null,null,null,null,null,null,null,null,null,null,null,null,null,null,null,null,null,null,null,null,null,null,null,null,null,null,null,null,null,null,null,null,null,null,null,null,null,null,null,null,null,null,null,null,null,null,null,null,null,null,null,null,null,null,null,null,null,null,null,null,null,"Linda"," her ","Her ","she"]
[null,null,null,null,null,null,null,null,null,null,null,null,null,null,null,null,null,null,null,null,null,null,null,null,null,null,null,null,null,null,null,null,null,null,null,null,null,null,null,null,null,null,null,null,null,null,null,null,null,null,null,null,null,null,null,null,null,null,null,null,null,"Mary"," her ","Her ","she"]
[null,null,null,null,null,null,null,null,null,null,null,null,null,null,null,null,null,null,null,null,null,null,null,null,null,null,null,null,null,null,null,null,null,null,null,null,null,null,null,null,null,null,null,null,null,null,null,null,null,null,null,null,null,null,null,null,null,null,null,null,null,"Olivia"," her ","Her ","she"]
[null,null,null,null,null,null,null,null,null,null,null,null,null,null,null,null,null,null,null,null,null,null,null,null,null,null,null,null,null,null,null,null,null,null,null,null,null,null,null,null,null,null,null,null,null,null,null,null,null,null,null,null,null,null,null,null,null,null,null,null,null,"Paula"," her ","Her ","she"]
[null,null,null,null,null,null,null,null,null,null,null,null,null,null,null,null,null,null,null,null,null,null,null,null,null,null,null,null,null,null,null,null,null,null,null,null,null,null,null,null,null,null,null,null,null,null,null,null,null,null,null,null,null,null,null,null,null,null,null,null,null,"Ruth"," her ","Her ","she"]
[null,null,null,null,null,null,null,null,null,null,null,null,null,null,null,null,null,null,null,null,null,null,null,null,null,null,null,null,null,null,null,null,null,null,null,null,null,null,null,null,null,null,null,null,null,null,null,null,null,null,null,null,null,null,null,null,null,null,null,null,null,"Sally"," her ","Her ","she"]
[null,null,null,null,null,null,null,null,null,null,null,null,null,null,null,null,null,null,null,null,null,null,null,null,null,null,null,null,null,null,null,null,null,null,null,null,null,null,null,null,null,null,null,null,null,null,null,null,null,null,null,null,null,null,null,null,null,null,null,null,null,"Terri"," her ","Her ","she"]
[null,null,null,null,null,null,null,null,null,null,null,null,null,null,null,null,null,null,null,null,null,null,null,null,null,null,null,null,null,null,null,null,null,null,null,null,null,null,null,null,null,null,null,null,null,null,null,null,null,null,null,null,null,null,null,null,null,null,null,null,null,"Val"," her ","Her ","she"]
[null,null,null,null,null,null,null,null,null,null,null,null,null,null,null,null,null,null,null,null,null,null,null,null,null,null,null,null,null,null,null,null,null,null,null,null,null,null,null,null,null,null,null,null,null,null,null,null,null,null,null,null,null,null,null,null,null,null,null,null,null,"Wendy"," her ","Her ","she"]
[null,null,null,null,null,null,null,null,null,null,null,null,null,null,null,null,null,null,null,null,null,null,null,null,null,null,null,null,null,null,null,null,null,null,null,null,null,null,null,null,null,null,null,null,null,null,null,null,null,null,null,null,null,null,null,null,null,null,null,null,null,"Abbi"," her ","Her ","she"]
[null,null,null,null,null,null,null,null,null,null,null,null,null,null,null,null,null,null,null,null,null,null,null,null,null,null,null,null,null,null,null,null,null,null,null,null,null,null,null,null,null,null,null,null,null,null,null,null,null,null,null,null,null,null,null,null,null,null,null,null,null,"Lisa"," her ","Her ","she"]
[null,null,null,null,null,null,null,null,null,null,null,null,null,null,null,null,null,null,null,null,null,null,null,null,null,null,null,null,null,null,null,null,null,null,null,null,null,null,null,null,null,null,null,null,null,null,null,null,null,null,null,null,null,null,null,null,null,null,null,null,null,"Kerry"," her ","Her ","she"]
[null,null,null,null,null,null,null,null,null,null,null,null,null,null,null,null,null,null,null,null,null,null,null,null,null,null,null,null,null,null,null,null,null,null,null,null,null,null,null,null,null,null,null,null,null,null,null,null,null,null,null,null,null,null,null,null,null,null,null,null,null,"Jill"," her ","Her ","she"]
[null,null,null,null,null,null,null,null,null,null,null,null,null,null,null,null,null,null,null,null,null,null,null,null,null,null,null,null,null,null,null,null,null,null,null,null,null,null,null,null,null,null,null,null,null,null,null,null,null,null,null,null,null,null,null,null,null,null,null,null,null,"Jane"," her ","Her ","she"]
[null,null,null,null,null,null,null,null,null,null,null,null,null,null,null,null,null,null,null,null,null,null,null,null,null,null,null,null,null,null,null,null,null,null,null,null,null,null,null,null,null,null,null,null,null,null,null,null,null,null,null,null,null,null,null,null,null,null,null,null,null,"Janet"," her ","Her ","she"]
[null,null,null,null,null,null,null,null,null,null,null,null,null,null,null,null,null,null,null,null,null,null,null,null,null,null,null,null,null,null,null,null,null,null,null,null,null,null,null,null,null,null,null,null,null,null,null,null,null,null,null,null,null,null,null,null,null,null,null,null,null,"Vicki"," her ","Her ","she"]
[null,null,null,null,null,null,null,null,null,null,null,null,null,null,null,null,null,null,null,null,null,null,null,null,null,null,null,null,null,null,null,null,null,null,null,null,null,null,null,null,null,null,null,null,null,null,null,null,null,null,null,null,null,null,null,null,null,null,null,null,null,"Hollie"," her ","Her ","she"]
[null,null,null,null,null,null,null,null,null,null,null,null,null,null,null,null,null,null,null,null,null,null,null,null,null,null,null,null,null,null,null,null,null,null,null,null,null,null,null,null,null,null,null,null,null,null,null,null,null,null,null,null,null,null,null,null,null,null,null,null,null,"Jo"," her ","Her ","she"]
[null,null,null,null,null,null,null,null,null,null,null,null,null,null,null,null,null,null,null,null,null,null,null,null,null,null,null,null,null,null,null,null,null,null,null,null,null,null,null,null,null,null,null,null,null,null,null,null,null,null,null,null,null,null,null,null,null,null,null,null,null,"Jasmin"," her ","Her ","she"]
[null,null,null,null,null,null,null,null,null,null,null,null,null,null,null,null,null,null,null,null,null,null,null,null,null,null,null,null,null,null,null,null,null,null,null,null,null,null,null,null,null,null,null,null,null,null,null,null,null,null,null,null,null,null,null,null,null,null,null,null,null,"Kylie"," her ","Her ","she"]
[null,null,null,null,null,null,null,null,null,null,null,null,null,null,null,null,null,null,null,null,null,null,null,null,null,null,null,null,null,null,null,null,null,null,null,null,null,null,null,null,null,null,null,null,null,null,null,null,null,null,null,null,null,null,null,null,null,null,null,null,null,"Peta"," her ","Her ","she"]
[null,null,null,null,null,null,null,null,null,null,null,null,null,null,null,null,null,null,null,null,null,null,null,null,null,null,null,null,null,null,null,null,null,null,null,null,null,null,null,null,null,null,null,null,null,null,null,null,null,null,null,null,null,null,null,null,null,null,null,null,null,"Alana"," her ","Her ","she"]
[null,null,null,null,null,null,null,null,null,null,null,null,null,null,null,null,null,null,null,null,null,null,null,null,null,null,null,null,null,null,null,null,null,null,null,null,null,null,null,null,null,null,null,null,null,null,null,null,null,null,null,null,null,null,null,null,null,null,null,null,null,"Sue"," her ","Her ","she"]
[null,null,null,null,null,null,null,null,null,null,null,null,null,null,null,null,null,null,null,null,null,null,null,null,null,null,null,null,null,null,null,null,null,null,null,null,null,null,null,null,null,null,null,null,null,null,null,null,null,null,null,null,null,null,null,null,null,null,null,null,null,"Susan"," her ","Her ","she"]
[null,null,null,null,null,null,null,null,null,null,null,null,null,null,null,null,null,null,null,null,null,null,null,null,null,null,null,null,null,null,null,null,null,null,null,null,null,null,null,null,null,null,null,null,null,null,null,null,null,null,null,null,null,null,null,null,null,null,null,null,null,"Jenny"," her ","Her ","she"]
[null,null,null,null,null,null,null,null,null,null,null,null,null,null,null,null,null,null,null,null,null,null,null,null,null,null,null,null,null,null,null,null,null,null,null,null,null,null,null,null,null,null,null,null,null,null,null,null,null,null,null,null,null,null,null,null,null,null,null,null,null,"Hazel"," her ","Her ","she"]
[null,null,null,null,null,null,null,null,null,null,null,null,null,null,null,null,null,null,null,null,null,null,null,null,null,null,null,null,null,null,null,null,null,null,null,null,null,null,null,null,null,null,null,null,null,null,null,null,null,null,null,null,null,null,null,null,null,null,null,null,null,"Margo"," her ","Her ","she"]
[null,null,null,null,null,null,null,null,null,null,null,null,null,null,null,null,null,null,null,null,null,null,null,null,null,null,null,null,null,null,null,null,null,null,null,null,null,null,null,null,null,null,null,null,null,null,null,null,null,null,null,null,null,null,null,null,null,null,null,null,null,"Gabbi"," her ","Her ","she"]
[null,null,null,null,null,null,null,null,null,null,null,null,null,null,null,null,null,null,null,null,null,null,null,null,null,null,null,null,null,null,null,null,null,null,null,null,null,null,null,null,null,null,null,null,null,null,null,null,null,null,null,null,null,null,null,null,null,null,null,null,null,"Pat"," her ","Her ","she"]